Workbook

Sheet сводная
A4: ВСЕ ОЧКИ сумма | B4: Пользователь
A5: 3833 | B5: Føliant
A6: 3814 | B6: Prosto_Serega
A7: 3805 | B7: dyadya
A8: 3773 | B8: victor.bogatov
A9: 3772 | B9: anogr
A10: 3759 | B10: ГОЛ
A11: 3748 | B11: vasilijponkin712
A12: 3740 | B12: Рощенюк Юрій
A13: 3734 | B13: Rodrimes
A14: 3714 | B14: come back
A15: 3691 | B15: Sashilo
A16: 3679 | B16: egk
A17: 3673 | B17: Serzhik
A18: 3660 | B18: Кот-63
A19: 3656 | B19: JUT
A20: 3643 | B20: bafan
A21: 3632 | B21: gesha0024
A22: 3614 | B22: ПЧАНИ
A23: 3604 | B23: Яг Морт
A24: 3603 | B24: YumGSt
A25: 3601 | B25: Ihor Vinnichuk
A26: 3593 | B26: зенитфан
A27: 3582 | B27: SSAKALAS
A28: 3579 | B28: Doom Breaker
A29: 3578 | B29: 22rus
A30: 3572 | B30: Lazy Flash
A31: 3548 | B31: SERG
A32: 3544 | B32: Angelneit-73
A33: 3535 | B33: murzikov
A34: 3526 | B34: Сокол
A35: 3521 | B35: Zirka
A36: 3509 | B36: gekson36
A37: 3475 | B37: Romchyk
A38: 3473 | B38: Сергей Бернадский
A39: 3463 | B39: Вовчикас
A40: 3455 | B40: LioMart
A41: 3454 | B41: roman.valman
A42: 3449 | B42: aleks050874
A43: 3415 | B43: Anisi
A44: 3403 | B44: khmel95
A45: 3392 | B45: Микола Білак
A46: 3369 | B46: Андрій Кожумяка
A47: 3321 | B47: SkVaL
A48: 3315 | B48: Uriy1234
A49: 3256 | B49: Андрей
A50: 3244 | B50: MasterC4
A51: 3233 | B51: Aneta81
A52: 3231 | B52: anton
A53: 3222 | B53: Doktoroff
A54: 3200 | B54: Dmitry Tsarytsyn
A55: 3198 | B55: azarte
A56: 3152 | B56: Las Kij
A57: 3066 | B57: rumkot
A58: 3011 | B58: cska5
A59: 2972 | B59: DAV1978
A60: 2937 | B60: aleks22411971
A61: 2932 | B61: Petrovish-35.
A62: 2930 | B62: Squidward Patrikovich
A63: 2902 | B63: hnatko
B64: Pavel4613
A65: 2855 | B65: Вова Щур
A66: 2782 | B66: Emmanuel Oboubi
A67: 2759 | B67: SuperVlad
A68: 2571 | B68: danaygol
A69: 2565 | B69: ziama
A70: 2496 | B70: l1der
A71: 2439 | B71: sS1mple
A72: 2434 | B72: ivan
A73: 2405 | B73: Drezden1
A74: 2395 | B74: white force
A75: 2386 | B75: dander
A76: 2373 | B76: dmol13
A77: 2353 | B77: RMadrid
A78: 2339 | B78: nickthesecond
B79: sergeyn
A80: 2330 | B80: Laster
A81: 2321 | B81: andrpo1
A82: 2320 | B82: ruslan
A83: 2308 | B83: sergey.derx
A84: 2307 | B84: predictor
A85: 2302 | B85: forman-gert
A86: 2300 | B86: G3rman
A87: 2295 | B87: altaran
A88: 2292 | B88: FEt1s
A89: 2288 | B89: sparta1
A90: 2287 | B90: Garry
B91: serg.ter
A92: 2262 | B92: zTeref
A93: 2255 | B93: thpred
A94: 2253 | B94: Андрій Огороднік
A95: 2242 | B95: Динар
A96: 2160 | B96: VladS
A97: 2131 | B97: динамо
A98: 1937 | B98: Tosha13
A99: 1749 | B99: Sergyn9
A100: 1599 | B100: baron
A101: 1513 | B101: TMfC1924
A102: 1492 | B102: Sun
A103: 1470 | B103: Andrii Bilenkyi
A104: 1332 | B104: Тагир Мурсалов
A105: 1311 | B105: alex
A106: 1211 | B106: sergejserikov2017
A107: 1184 | B107: сафон
A108: 1180 | B108: lond0nka
A109: 1095 | B109: Роман Ороман
A110: 1078 | B110: mcichnik
A111: 1006 | B111: Сергій Денькович
A112: 872 | B112: Tarik2210
A113: 844 | B113: pjohov
A114: 781 | B114: romankramarenko457
A115: 775 | B115: Gust
A116: 743 | B116: Куров Олег
A117: 727 | B117: Роман Кибкало
A118: 665 | B118: BIHHI87
A119: 642 | B119: savundi
A120: 615 | B120: Виталий
A121: 555 | B121: Сергей Гаврилюк
A122: 510 | B122: savic
A123: 473 | B123: Maxidollar
A124: 417 | B124: GR7
A125: 409 | B125: Huxley
B126: Віталій Назаревич
A127: 404 | B127: Aleksey Taran
A128: 385 | B128: Андрей Большаков
A129: 376 | B129: Dilmurod Askarov
A130: 374 | B130: Rajabali
A131: 372 | B131: Star
A132: 322 | B132: rfnhfgc
A133: 317 | B133: Stanislav Semenov
A134: 253 | B134: nikita_fufachev
A135: 250 | B135: Osvita Cloud
A136: 249 | B136: Egor Zanchurin
A137: 247 | B137: Matahary
A138: 243 | B138: Alex_Kotelenets
A139: 242 | B139: Karim Mairakzz
A140: 212 | B140: Unreal 17
A141: 196 | B141: Olayinka90
A142: 194 | B142: 100000
B143: Юрій Романюк
A144: 183 | B144: CLH Hour
A145: 182 | B145: ilsur-fresh
B146: Petro Andrushchak
A147: 171 | B147: Rtrain Raxt
A148: 160 | B148: vitoscalette21
A149: 137 | B149: PremierLeague
A150: 118 | B150: TES22
A151: 100 | B151: Trent Alexander-Arnold
A152: 97 | B152: SE29
A153: 93 | B153: павел фил
A154: 92 | B154: AdLaBat
B155: Шахриер Негматов
A156: 87 | B156: Hype
A157: 85 | B157: atay.liverpool
A158: 82 | B158: igorko
A159: 70 | B159: Alegik_27
A160: 65 | B160: deepraj07
B161: id49239928
A162: 62 | B162: Анатолий
A163: 58 | B163: Burtaze
A164: 55 | B164: kurah1022
A165: 54 | B165: jedon23
A166: 53 | B166: maradona86
A167: 47 | B167: Denis
A168: 43 | B168: aleksandrtkacenko1312
A169: 42 | B169: Фаныч
A170: 40 | B170: Никита
A171: 35 | B171: Евгений Пономарев
A172: 25 | B172: Сергій Шевченко
A173: 24 | B173: Vaqif Rashidov
A174: 13 | B174: Elbek Yuldashev
A175: 12 | B175: MemphiS
B176: Дмитрий Дзюба
B177: Миша Карпман
B178: Мурат Балтаев
A179: 9 | B179: Ridik058
A180: 7 | B180: jedon
A181: 1 | B181: naio5165
A182: 0 | B182: Albert Asante
B183: Andriy14
B184: Arafangel
B185: ARIZONA30
B186: Arthur Godfred
B187: Augastine Sikhulu
B188: Bizon
B189: ChR Zoom
B190: Damilola Opeyemi
B191: Daniyalov
B192: Imel69
B193: kolay965
B194: Lekaazotu
B195: Lolik
B196: LovroLulic
B197: Nemec183
B198: Oleksii Bandurko
B199: Outdated Joke
B200: Parker
B201: pavel 1k
B202: RedFox
B203: Sanya
... 23 more rows

Sheet Конкурсы - рейтинг new
A1: для упорядычивания перед вводом данных... если сортировать по столбцу "ВСЕ ОЧКИ сумма", чтоб вернуть в исходное состояние | D1: преобразован формат ячеек в числовой | S1: сортировать или отфильтровать. Например топ 10, хотя у каждого по 5 значений ..топ 50 тогда 10 первых.. Наверно всё-ж сортировка
A2: номер по порядку | B2: # | C2: Пользователь | D2: Очки | E2: Прог. | F2: Буст. | G2: До лидера | H2: Прогнозы / Матчи | I2: О / П | J2: Успешные прогнозы | K2: Счет | L2: Разн. | M2: Исход | N2: % усп | O2: Ошибки | P2: Сумма коэфов | Q2: ВСЕ ОЧКИ сумма | R2: ранг..место по очкам1 | S2: ранг..место по очкам
A3: 1 | C3: АНГЛИЯ | Q3: =SUMIF(C:C,C3,D:D) -> 0 | R3: =RANK(Q3,Q:Q) -> 769 | S3: =RANK(Q3,Q:Q)+COUNTIF($Q$1:Q2,Q3) -> 769
A4: 2 | B4: 1 | C4: Рощенюк Юрій | D4: 861 | E4: 696 | F4: 165 | H4: 80 / 380 | I4: 10.76 | J4: 48 | K4: 5 | L4: 11 | M4: 32 | N4: 60 | O4: 32 | P4: 81.05 | Q4: =SUMIF(C:C,C4,D:D) -> 3740 | R4: =RANK(Q4,Q:Q) -> 36 | S4: =RANK(Q4,Q:Q)+COUNTIF($Q$1:Q3,Q4) -> 36
A5: 3 | B5: 2 | C5: Rodrimes | D5: 851 | E5: 704 | F5: 147 | G5: 10 | H5: 80 / 380 | I5: 10.64 | J5: 50 | K5: 8 | L5: 12 | M5: 30 | N5: 62.5 | O5: 30 | P5: 92.55 | Q5: =SUMIF(C:C,C5,D:D) -> 3734 | R5: =RANK(Q5,Q:Q) -> 41 | S5: =RANK(Q5,Q:Q)+COUNTIF($Q$1:Q4,Q5) -> 41
A6: 4 | B6: 3 | C6: pjohov | D6: 844 | E6: 727 | F6: 117 | G6: 17 | H6: 80 / 380 | I6: 10.55 | J6: 53 | K6: 7 | L6: 17 | M6: 29 | N6: 66.25 | O6: 27 | P6: 101.87 | Q6: =SUMIF(C:C,C6,D:D) -> 844 | R6: =RANK(Q6,Q:Q) -> 541 | S6: =RANK(Q6,Q:Q)+COUNTIF($Q$1:Q5,Q6) -> 541
A7: 5 | B7: 4 | C7: Ihor Vinnichuk | D7: 842 | E7: 717 | F7: 125 | G7: 19 | H7: 80 / 380 | I7: 10.52 | J7: 48 | K7: 12 | L7: 10 | M7: 26 | N7: 60 | O7: 32 | P7: 87.12 | Q7: =SUMIF(C:C,C7,D:D) -> 3601 | R7: =RANK(Q7,Q:Q) -> 101 | S7: =RANK(Q7,Q:Q)+COUNTIF($Q$1:Q6,Q7) -> 101
A8: 6 | B8: 5 | C8: Squidward Patrikovich | D8: 842 | E8: 679 | F8: 163 | G8: 19 | H8: 80 / 380 | I8: 10.52 | J8: 47 | K8: 8 | L8: 9 | M8: 30 | N8: 58.75 | O8: 33 | P8: 93.01 | Q8: =SUMIF(C:C,C8,D:D) -> 2930 | R8: =RANK(Q8,Q:Q) -> 286 | S8: =RANK(Q8,Q:Q)+COUNTIF($Q$1:Q7,Q8) -> 286
A9: 7 | B9: 6 | C9: victor.bogatov | D9: 839 | E9: 684 | F9: 155 | G9: 22 | H9: 80 / 380 | I9: 10.49 | J9: 48 | K9: 7 | L9: 14 | M9: 27 | N9: 60 | O9: 32 | P9: 83.72 | Q9: =SUMIF(C:C,C9,D:D) -> 3773 | R9: =RANK(Q9,Q:Q) -> 16 | S9: =RANK(Q9,Q:Q)+COUNTIF($Q$1:Q8,Q9) -> 16
A10: 8 | B10: 7 | C10: dyadya | D10: 835 | E10: 682 | F10: 153 | G10: 26 | H10: 80 / 380 | I10: 10.44 | J10: 51 | K10: 6 | L10: 11 | M10: 34 | N10: 63.75 | O10: 29 | P10: 96.97 | Q10: =SUMIF(C:C,C10,D:D) -> 3805 | R10: =RANK(Q10,Q:Q) -> 11 | S10: =RANK(Q10,Q:Q)+COUNTIF($Q$1:Q9,Q10) -> 11
A11: 9 | B11: 8 | C11: Føliant | D11: 834 | E11: 711 | F11: 123 | G11: 27 | H11: 80 / 380 | I11: 10.42 | J11: 47 | K11: 7 | L11: 12 | M11: 28 | N11: 58.75 | O11: 33 | P11: 81.85 | Q11: =SUMIF(C:C,C11,D:D) -> 3833 | R11: =RANK(Q11,Q:Q) -> 1 | S11: =RANK(Q11,Q:Q)+COUNTIF($Q$1:Q10,Q11) -> 1
A12: 10 | B12: 9 | C12: ПЧАНИ | D12: 829 | E12: 687 | F12: 142 | G12: 32 | H12: 80 / 380 | I12: 10.36 | J12: 47 | K12: 9 | L12: 7 | M12: 31 | N12: 58.75 | O12: 33 | P12: 84.57 | Q12: =SUMIF(C:C,C12,D:D) -> 3614 | R12: =RANK(Q12,Q:Q) -> 86 | S12: =RANK(Q12,Q:Q)+COUNTIF($Q$1:Q11,Q12) -> 86
A13: 11 | B13: 10 | C13: Prosto_Serega | D13: 828 | E13: 684 | F13: 144 | G13: 33 | H13: 80 / 380 | I13: 10.35 | J13: 48 | K13: 7 | L13: 11 | M13: 30 | N13: 60 | O13: 32 | P13: 84.22 | Q13: =SUMIF(C:C,C13,D:D) -> 3814 | R13: =RANK(Q13,Q:Q) -> 6 | S13: =RANK(Q13,Q:Q)+COUNTIF($Q$1:Q12,Q13) -> 6
A14: 12 | B14: 11 | C14: SERG | D14: 825 | E14: 716 | F14: 109 | G14: 36 | H14: 80 / 380 | I14: 10.31 | J14: 50 | K14: 13 | L14: 8 | M14: 29 | N14: 62.5 | O14: 30 | P14: 94.12 | Q14: =SUMIF(C:C,C14,D:D) -> 3548 | R14: =RANK(Q14,Q:Q) -> 131 | S14: =RANK(Q14,Q:Q)+COUNTIF($Q$1:Q13,Q14) -> 131
A15: 13 | B15: 12 | C15: come back | D15: 823 | E15: 690 | F15: 133 | G15: 38 | H15: 80 / 380 | I15: 10.29 | J15: 48 | K15: 6 | L15: 10 | M15: 32 | N15: 60 | O15: 32 | P15: 84.95 | Q15: =SUMIF(C:C,C15,D:D) -> 3714 | R15: =RANK(Q15,Q:Q) -> 46 | S15: =RANK(Q15,Q:Q)+COUNTIF($Q$1:Q14,Q15) -> 46
A16: 14 | B16: 13 | C16: Sashilo | D16: 815 | E16: 714 | F16: 101 | G16: 46 | H16: 80 / 380 | I16: 10.19 | J16: 50 | K16: 10 | L16: 15 | M16: 25 | N16: 62.5 | O16: 30 | P16: 91.72 | Q16: =SUMIF(C:C,C16,D:D) -> 3691 | R16: =RANK(Q16,Q:Q) -> 51 | S16: =RANK(Q16,Q:Q)+COUNTIF($Q$1:Q15,Q16) -> 51
A17: 15 | B17: 14 | C17: Doom Breaker | D17: 814 | E17: 685 | F17: 129 | G17: 47 | H17: 75 / 380 | I17: 10.85 | J17: 48 | K17: 8 | L17: 12 | M17: 28 | N17: 64 | O17: 27 | P17: 85.45 | Q17: =SUMIF(C:C,C17,D:D) -> 3579 | R17: =RANK(Q17,Q:Q) -> 116 | S17: =RANK(Q17,Q:Q)+COUNTIF($Q$1:Q16,Q17) -> 116
A18: 16 | B18: 15 | C18: bafan | D18: 805 | E18: 683 | F18: 122 | G18: 56 | H18: 80 / 380 | I18: 10.06 | J18: 46 | K18: 9 | L18: 7 | M18: 30 | N18: 57.5 | O18: 34 | P18: 81.45 | Q18: =SUMIF(C:C,C18,D:D) -> 3643 | R18: =RANK(Q18,Q:Q) -> 76 | S18: =RANK(Q18,Q:Q)+COUNTIF($Q$1:Q17,Q18) -> 76
A19: 17 | B19: 16 | C19: Anisi | D19: 804 | E19: 710 | F19: 94 | G19: 57 | H19: 80 / 380 | I19: 10.05 | J19: 48 | K19: 12 | L19: 9 | M19: 27 | N19: 60 | O19: 32 | P19: 96.89 | Q19: =SUMIF(C:C,C19,D:D) -> 3415 | R19: =RANK(Q19,Q:Q) -> 191 | S19: =RANK(Q19,Q:Q)+COUNTIF($Q$1:Q18,Q19) -> 191
A20: 18 | B20: 17 | C20: зенитфан | D20: 804 | E20: 682 | F20: 122 | G20: 57 | H20: 80 / 380 | I20: 10.05 | J20: 47 | K20: 9 | L20: 9 | M20: 29 | N20: 58.75 | O20: 33 | P20: 82.22 | Q20: =SUMIF(C:C,C20,D:D) -> 3593 | R20: =RANK(Q20,Q:Q) -> 106 | S20: =RANK(Q20,Q:Q)+COUNTIF($Q$1:Q19,Q20) -> 106
A21: 19 | B21: 18 | C21: Кот-63 | D21: 801 | E21: 694 | F21: 107 | G21: 60 | H21: 80 / 380 | I21: 10.01 | J21: 48 | K21: 7 | L21: 11 | M21: 30 | N21: 60 | O21: 32 | P21: 82.55 | Q21: =SUMIF(C:C,C21,D:D) -> 3660 | R21: =RANK(Q21,Q:Q) -> 66 | S21: =RANK(Q21,Q:Q)+COUNTIF($Q$1:Q20,Q21) -> 66
A22: 20 | B22: 19 | C22: gekson36 | D22: 801 | E22: 684 | F22: 117 | G22: 60 | H22: 80 / 380 | I22: 10.01 | J22: 48 | K22: 8 | L22: 9 | M22: 31 | N22: 60 | O22: 32 | P22: 88.97 | Q22: =SUMIF(C:C,C22,D:D) -> 3509 | R22: =RANK(Q22,Q:Q) -> 156 | S22: =RANK(Q22,Q:Q)+COUNTIF($Q$1:Q21,Q22) -> 156
A23: 21 | B23: 20 | C23: anogr | D23: 800 | E23: 697 | F23: 103 | G23: 61 | H23: 80 / 380 | I23: 10 | J23: 48 | K23: 8 | L23: 9 | M23: 31 | N23: 60 | O23: 32 | P23: 85.82 | Q23: =SUMIF(C:C,C23,D:D) -> 3772 | R23: =RANK(Q23,Q:Q) -> 21 | S23: =RANK(Q23,Q:Q)+COUNTIF($Q$1:Q22,Q23) -> 21
A24: 22 | B24: 21 | C24: ГОЛ | D24: 798 | E24: 689 | F24: 109 | G24: 63 | H24: 80 / 380 | I24: 9.97 | J24: 47 | K24: 8 | L24: 9 | M24: 30 | N24: 58.75 | O24: 33 | P24: 82.97 | Q24: =SUMIF(C:C,C24,D:D) -> 3759 | R24: =RANK(Q24,Q:Q) -> 26 | S24: =RANK(Q24,Q:Q)+COUNTIF($Q$1:Q23,Q24) -> 26
A25: 23 | B25: 22 | C25: YumGSt | D25: 798 | E25: 661 | F25: 137 | G25: 63 | H25: 80 / 380 | I25: 9.97 | J25: 46 | K25: 7 | L25: 10 | M25: 29 | N25: 57.5 | O25: 34 | P25: 76.42 | Q25: =SUMIF(C:C,C25,D:D) -> 3603 | R25: =RANK(Q25,Q:Q) -> 96 | S25: =RANK(Q25,Q:Q)+COUNTIF($Q$1:Q24,Q25) -> 96
A26: 24 | B26: 23 | C26: JUT | D26: 797 | E26: 685 | F26: 112 | G26: 64 | H26: 80 / 380 | I26: 9.96 | J26: 47 | K26: 10 | L26: 7 | M26: 30 | N26: 58.75 | O26: 33 | P26: 81.07 | Q26: =SUMIF(C:C,C26,D:D) -> 3656 | R26: =RANK(Q26,Q:Q) -> 71 | S26: =RANK(Q26,Q:Q)+COUNTIF($Q$1:Q25,Q26) -> 71
A27: 25 | B27: 24 | C27: gesha0024 | D27: 796 | E27: 658 | F27: 138 | G27: 65 | H27: 80 / 380 | I27: 9.95 | J27: 44 | K27: 7 | L27: 12 | M27: 25 | N27: 55 | O27: 36 | P27: 82.03 | Q27: =SUMIF(C:C,C27,D:D) -> 3632 | R27: =RANK(Q27,Q:Q) -> 81 | S27: =RANK(Q27,Q:Q)+COUNTIF($Q$1:Q26,Q27) -> 81
A28: 26 | B28: 25 | C28: vasilijponkin712 | D28: 791 | E28: 685 | F28: 106 | G28: 70 | H28: 80 / 380 | I28: 9.89 | J28: 46 | K28: 4 | L28: 13 | M28: 29 | N28: 57.5 | O28: 34 | P28: 84.66 | Q28: =SUMIF(C:C,C28,D:D) -> 3748 | R28: =RANK(Q28,Q:Q) -> 31 | S28: =RANK(Q28,Q:Q)+COUNTIF($Q$1:Q27,Q28) -> 31
A29: 27 | B29: 26 | C29: Сокол | D29: 790 | E29: 669 | F29: 121 | G29: 71 | H29: 79 / 380 | I29: 10 | J29: 44 | K29: 10 | L29: 9 | M29: 25 | N29: 55.7 | O29: 35 | P29: 77.37 | Q29: =SUMIF(C:C,C29,D:D) -> 3526 | R29: =RANK(Q29,Q:Q) -> 146 | S29: =RANK(Q29,Q:Q)+COUNTIF($Q$1:Q28,Q29) -> 146
A30: 28 | B30: 27 | C30: egk | D30: 789 | E30: 682 | F30: 107 | G30: 72 | H30: 80 / 380 | I30: 9.86 | J30: 48 | K30: 10 | L30: 10 | M30: 28 | N30: 60 | O30: 32 | P30: 84.52 | Q30: =SUMIF(C:C,C30,D:D) -> 3679 | R30: =RANK(Q30,Q:Q) -> 56 | S30: =RANK(Q30,Q:Q)+COUNTIF($Q$1:Q29,Q30) -> 56
A31: 29 | B31: 28 | C31: Romchyk | D31: 782 | E31: 629 | F31: 153 | G31: 79 | H31: 80 / 380 | I31: 9.77 | J31: 42 | K31: 3 | L31: 7 | M31: 32 | N31: 52.5 | O31: 38 | P31: 78.67 | Q31: =SUMIF(C:C,C31,D:D) -> 3475 | R31: =RANK(Q31,Q:Q) -> 161 | S31: =RANK(Q31,Q:Q)+COUNTIF($Q$1:Q30,Q31) -> 161
A32: 30 | B32: 29 | C32: Uriy1234 | D32: 780 | E32: 647 | F32: 133 | G32: 81 | H32: 80 / 380 | I32: 9.75 | J32: 43 | K32: 7 | L32: 11 | M32: 25 | N32: 53.75 | O32: 37 | P32: 81.00 | Q32: =SUMIF(C:C,C32,D:D) -> 3315 | R32: =RANK(Q32,Q:Q) -> 216 | S32: =RANK(Q32,Q:Q)+COUNTIF($Q$1:Q31,Q32) -> 216
A33: 31 | B33: 30 | C33: Gust | D33: 775 | E33: 644 | F33: 131 | G33: 86 | H33: 72 / 380 | I33: 10.76 | J33: 45 | K33: 8 | L33: 10 | M33: 27 | N33: 62.5 | O33: 27 | P33: 83.80 | Q33: =SUMIF(C:C,C33,D:D) -> 775 | R33: =RANK(Q33,Q:Q) -> 547 | S33: =RANK(Q33,Q:Q)+COUNTIF($Q$1:Q32,Q33) -> 547
A34: 32 | B34: 31 | C34: Dmitry Tsarytsyn | D34: 774 | E34: 652 | F34: 122 | G34: 87 | H34: 80 / 380 | I34: 9.67 | J34: 44 | K34: 9 | L34: 9 | M34: 26 | N34: 55 | O34: 36 | P34: 79.85 | Q34: =SUMIF(C:C,C34,D:D) -> 3200 | R34: =RANK(Q34,Q:Q) -> 246 | S34: =RANK(Q34,Q:Q)+COUNTIF($Q$1:Q33,Q34) -> 246
A35: 33 | B35: 32 | C35: khmel95 | D35: 773 | E35: 660 | F35: 113 | G35: 88 | H35: 80 / 380 | I35: 9.66 | J35: 46 | K35: 7 | L35: 12 | M35: 27 | N35: 57.5 | O35: 34 | P35: 83.49 | Q35: =SUMIF(C:C,C35,D:D) -> 3403 | R35: =RANK(Q35,Q:Q) -> 196 | S35: =RANK(Q35,Q:Q)+COUNTIF($Q$1:Q34,Q35) -> 196
A36: 34 | B36: 33 | C36: Serzhik | D36: 771 | E36: 679 | F36: 92 | G36: 90 | H36: 80 / 380 | I36: 9.64 | J36: 46 | K36: 9 | L36: 12 | M36: 25 | N36: 57.5 | O36: 34 | P36: 82.22 | Q36: =SUMIF(C:C,C36,D:D) -> 3673 | R36: =RANK(Q36,Q:Q) -> 61 | S36: =RANK(Q36,Q:Q)+COUNTIF($Q$1:Q35,Q36) -> 61
A37: 35 | B37: 34 | C37: Lazy Flash | D37: 766 | E37: 652 | F37: 114 | G37: 95 | H37: 80 / 380 | I37: 9.57 | J37: 47 | K37: 6 | L37: 9 | M37: 32 | N37: 58.75 | O37: 33 | P37: 83.67 | Q37: =SUMIF(C:C,C37,D:D) -> 3572 | R37: =RANK(Q37,Q:Q) -> 126 | S37: =RANK(Q37,Q:Q)+COUNTIF($Q$1:Q36,Q37) -> 126
A38: 36 | B38: 35 | C38: Яг Морт | D38: 759 | E38: 685 | F38: 74 | G38: 102 | H38: 80 / 380 | I38: 9.49 | J38: 47 | K38: 8 | L38: 11 | M38: 28 | N38: 58.75 | O38: 33 | P38: 87.34 | Q38: =SUMIF(C:C,C38,D:D) -> 3604 | R38: =RANK(Q38,Q:Q) -> 91 | S38: =RANK(Q38,Q:Q)+COUNTIF($Q$1:Q37,Q38) -> 91
A39: 37 | B39: 36 | C39: Вовчикас | D39: 759 | E39: 636 | F39: 123 | G39: 102 | H39: 80 / 380 | I39: 9.49 | J39: 46 | K39: 6 | L39: 9 | M39: 31 | N39: 57.5 | O39: 34 | P39: 85.11 | Q39: =SUMIF(C:C,C39,D:D) -> 3463 | R39: =RANK(Q39,Q:Q) -> 171 | S39: =RANK(Q39,Q:Q)+COUNTIF($Q$1:Q38,Q39) -> 171
A40: 38 | B40: 37 | C40: murzikov | D40: 757 | E40: 682 | F40: 75 | G40: 104 | H40: 80 / 380 | I40: 9.46 | J40: 46 | K40: 8 | L40: 11 | M40: 27 | N40: 57.5 | O40: 34 | P40: 81.22 | Q40: =SUMIF(C:C,C40,D:D) -> 3535 | R40: =RANK(Q40,Q:Q) -> 141 | S40: =RANK(Q40,Q:Q)+COUNTIF($Q$1:Q39,Q40) -> 141
A41: 39 | B41: 38 | C41: baron | D41: 757 | E41: 659 | F41: 98 | G41: 104 | H41: 79 / 380 | I41: 9.58 | J41: 44 | K41: 12 | L41: 7 | M41: 25 | N41: 55.7 | O41: 35 | P41: 83.54 | Q41: =SUMIF(C:C,C41,D:D) -> 1599 | R41: =RANK(Q41,Q:Q) -> 480 | S41: =RANK(Q41,Q:Q)+COUNTIF($Q$1:Q40,Q41) -> 480
A42: 40 | B42: 39 | C42: SSAKALAS | D42: 756 | E42: 660 | F42: 96 | G42: 105 | H42: 80 / 380 | I42: 9.45 | J42: 44 | K42: 4 | L42: 14 | M42: 26 | N42: 55 | O42: 36 | P42: 73.61 | Q42: =SUMIF(C:C,C42,D:D) -> 3582 | R42: =RANK(Q42,Q:Q) -> 111 | S42: =RANK(Q42,Q:Q)+COUNTIF($Q$1:Q41,Q42) -> 111
A43: 41 | B43: 40 | C43: 22rus | D43: 756 | E43: 635 | F43: 121 | G43: 105 | H43: 80 / 380 | I43: 9.45 | J43: 44 | K43: 6 | L43: 7 | M43: 31 | N43: 55 | O43: 36 | P43: 70.87 | Q43: =SUMIF(C:C,C43,D:D) -> 3578 | R43: =RANK(Q43,Q:Q) -> 121 | S43: =RANK(Q43,Q:Q)+COUNTIF($Q$1:Q42,Q43) -> 121
A44: 42 | B44: 41 | C44: Сергей Бернадский | D44: 754 | E44: 670 | F44: 84 | G44: 107 | H44: 80 / 380 | I44: 9.42 | J44: 47 | K44: 7 | L44: 11 | M44: 29 | N44: 58.75 | O44: 33 | P44: 80.35 | Q44: =SUMIF(C:C,C44,D:D) -> 3473 | R44: =RANK(Q44,Q:Q) -> 166 | S44: =RANK(Q44,Q:Q)+COUNTIF($Q$1:Q43,Q44) -> 166
A45: 43 | B45: 42 | C45: Angelneit-73 | D45: 754 | E45: 665 | F45: 89 | G45: 107 | H45: 79 / 380 | I45: 9.54 | J45: 45 | K45: 7 | L45: 13 | M45: 25 | N45: 56.96 | O45: 34 | P45: 78.96 | Q45: =SUMIF(C:C,C45,D:D) -> 3544 | R45: =RANK(Q45,Q:Q) -> 136 | S45: =RANK(Q45,Q:Q)+COUNTIF($Q$1:Q44,Q45) -> 136
A46: 44 | B46: 43 | C46: Микола Білак | D46: 752 | E46: 661 | F46: 91 | G46: 109 | H46: 80 / 380 | I46: 9.4 | J46: 42 | K46: 3 | L46: 12 | M46: 27 | N46: 52.5 | O46: 38 | P46: 76.24 | Q46: =SUMIF(C:C,C46,D:D) -> 3392 | R46: =RANK(Q46,Q:Q) -> 201 | S46: =RANK(Q46,Q:Q)+COUNTIF($Q$1:Q45,Q46) -> 201
A47: 45 | B47: 44 | C47: roman.valman | D47: 750 | E47: 643 | F47: 107 | G47: 111 | H47: 73 / 380 | I47: 10.27 | J47: 43 | K47: 12 | L47: 7 | M47: 24 | N47: 58.9 | O47: 30 | P47: 78.11 | Q47: =SUMIF(C:C,C47,D:D) -> 3454 | R47: =RANK(Q47,Q:Q) -> 181 | S47: =RANK(Q47,Q:Q)+COUNTIF($Q$1:Q46,Q47) -> 181
A48: 46 | B48: 45 | C48: SuperVlad | D48: 749 | E48: 624 | F48: 125 | G48: 112 | H48: 73 / 380 | I48: 10.26 | J48: 47 | K48: 6 | L48: 8 | M48: 33 | N48: 64.38 | O48: 26 | P48: 83.06 | Q48: =SUMIF(C:C,C48,D:D) -> 2759 | R48: =RANK(Q48,Q:Q) -> 311 | S48: =RANK(Q48,Q:Q)+COUNTIF($Q$1:Q47,Q48) -> 311
A49: 47 | B49: 46 | C49: Las Kij | D49: 748 | E49: 636 | F49: 112 | G49: 113 | H49: 80 / 380 | I49: 9.35 | J49: 44 | K49: 12 | L49: 12 | M49: 20 | N49: 55 | O49: 36 | P49: 81.96 | Q49: =SUMIF(C:C,C49,D:D) -> 3152 | R49: =RANK(Q49,Q:Q) -> 256 | S49: =RANK(Q49,Q:Q)+COUNTIF($Q$1:Q48,Q49) -> 256
A50: 48 | B50: 47 | C50: anton | D50: 743 | E50: 675 | F50: 68 | G50: 118 | H50: 79 / 380 | I50: 9.41 | J50: 46 | K50: 8 | L50: 7 | M50: 31 | N50: 58.23 | O50: 33 | P50: 79.17 | Q50: =SUMIF(C:C,C50,D:D) -> 3231 | R50: =RANK(Q50,Q:Q) -> 236 | S50: =RANK(Q50,Q:Q)+COUNTIF($Q$1:Q49,Q50) -> 236
A51: 49 | B51: 48 | C51: Куров Олег | D51: 743 | E51: 663 | F51: 80 | G51: 118 | H51: 80 / 380 | I51: 9.29 | J51: 45 | K51: 4 | L51: 13 | M51: 28 | N51: 56.25 | O51: 35 | P51: 78.81 | Q51: =SUMIF(C:C,C51,D:D) -> 743 | R51: =RANK(Q51,Q:Q) -> 548 | S51: =RANK(Q51,Q:Q)+COUNTIF($Q$1:Q50,Q51) -> 548
A52: 50 | B52: 49 | C52: Андрій Кожумяка | D52: 740 | E52: 646 | F52: 94 | G52: 121 | H52: 80 / 380 | I52: 9.25 | J52: 46 | K52: 8 | L52: 8 | M52: 30 | N52: 57.5 | O52: 34 | P52: 82.31 | Q52: =SUMIF(C:C,C52,D:D) -> 3369 | R52: =RANK(Q52,Q:Q) -> 206 | S52: =RANK(Q52,Q:Q)+COUNTIF($Q$1:Q51,Q52) -> 206
A53: 51 | B53: 50 | C53: Андрей | D53: 737 | E53: 658 | F53: 79 | G53: 124 | H53: 80 / 380 | I53: 9.21 | J53: 47 | K53: 5 | L53: 17 | M53: 25 | N53: 58.75 | O53: 33 | P53: 102.71 | Q53: =SUMIF(C:C,C53,D:D) -> 3256 | R53: =RANK(Q53,Q:Q) -> 221 | S53: =RANK(Q53,Q:Q)+COUNTIF($Q$1:Q52,Q53) -> 221
A54: 52 | B54: 51 | C54: aleks050874 | D54: 730 | E54: 671 | F54: 59 | G54: 131 | H54: 75 / 380 | I54: 9.73 | J54: 46 | K54: 8 | L54: 14 | M54: 24 | N54: 61.33 | O54: 29 | P54: 89.88 | Q54: =SUMIF(C:C,C54,D:D) -> 3449 | R54: =RANK(Q54,Q:Q) -> 186 | S54: =RANK(Q54,Q:Q)+COUNTIF($Q$1:Q53,Q54) -> 186
A55: 53 | B55: 52 | C55: Роман Кибкало | D55: 727 | E55: 657 | F55: 70 | G55: 134 | H55: 80 / 380 | I55: 9.09 | J55: 46 | K55: 10 | L55: 11 | M55: 25 | N55: 57.5 | O55: 34 | P55: 92.65 | Q55: =SUMIF(C:C,C55,D:D) -> 727 | R55: =RANK(Q55,Q:Q) -> 549 | S55: =RANK(Q55,Q:Q)+COUNTIF($Q$1:Q54,Q55) -> 549
A56: 54 | B56: 53 | C56: SkVaL | D56: 726 | E56: 661 | F56: 65 | G56: 135 | H56: 80 / 380 | I56: 9.07 | J56: 47 | K56: 4 | L56: 9 | M56: 34 | N56: 58.75 | O56: 33 | P56: 78.87 | Q56: =SUMIF(C:C,C56,D:D) -> 3321 | R56: =RANK(Q56,Q:Q) -> 211 | S56: =RANK(Q56,Q:Q)+COUNTIF($Q$1:Q55,Q56) -> 211
A57: 55 | B57: 54 | C57: Aneta81 | D57: 717 | E57: 668 | F57: 49 | G57: 144 | H57: 75 / 380 | I57: 9.56 | J57: 47 | K57: 11 | L57: 9 | M57: 27 | N57: 62.67 | O57: 28 | P57: 86.61 | Q57: =SUMIF(C:C,C57,D:D) -> 3233 | R57: =RANK(Q57,Q:Q) -> 231 | S57: =RANK(Q57,Q:Q)+COUNTIF($Q$1:Q56,Q57) -> 231
A58: 56 | B58: 55 | C58: LioMart | D58: 716 | E58: 628 | F58: 88 | G58: 145 | H58: 80 / 380 | I58: 8.95 | J58: 47 | K58: 5 | L58: 7 | M58: 35 | N58: 58.75 | O58: 33 | P58: 79.92 | Q58: =SUMIF(C:C,C58,D:D) -> 3455 | R58: =RANK(Q58,Q:Q) -> 176 | S58: =RANK(Q58,Q:Q)+COUNTIF($Q$1:Q57,Q58) -> 176
A59: 57 | B59: 56 | C59: azarte | D59: 713 | E59: 597 | F59: 116 | G59: 148 | H59: 73 / 380 | I59: 9.77 | J59: 41 | K59: 9 | L59: 12 | M59: 20 | N59: 56.16 | O59: 32 | P59: 67.57 | Q59: =SUMIF(C:C,C59,D:D) -> 3198 | R59: =RANK(Q59,Q:Q) -> 251 | S59: =RANK(Q59,Q:Q)+COUNTIF($Q$1:Q58,Q59) -> 251
A60: 58 | B60: 57 | C60: Zirka | D60: 694 | E60: 605 | F60: 89 | G60: 167 | H60: 80 / 380 | I60: 8.67 | J60: 41 | K60: 6 | L60: 11 | M60: 24 | N60: 51.25 | O60: 39 | P60: 72.19 | Q60: =SUMIF(C:C,C60,D:D) -> 3521 | R60: =RANK(Q60,Q:Q) -> 151 | S60: =RANK(Q60,Q:Q)+COUNTIF($Q$1:Q59,Q60) -> 151
A61: 59 | B61: 58 | C61: Doktoroff | D61: 680 | E61: 680 | F61: 0 | G61: 181 | H61: 80 / 380 | I61: 8.5 | J61: 47 | K61: 8 | L61: 8 | M61: 31 | N61: 58.75 | O61: 33 | P61: 79.82 | Q61: =SUMIF(C:C,C61,D:D) -> 3222 | R61: =RANK(Q61,Q:Q) -> 241 | S61: =RANK(Q61,Q:Q)+COUNTIF($Q$1:Q60,Q61) -> 241
A62: 60 | B62: 59 | C62: Андрій Огороднік | D62: 674 | E62: 600 | F62: 74 | G62: 187 | H62: 70 / 380 | I62: 9.63 | J62: 44 | K62: 10 | L62: 10 | M62: 24 | N62: 62.86 | O62: 26 | P62: 90.13 | Q62: =SUMIF(C:C,C62,D:D) -> 2253 | R62: =RANK(Q62,Q:Q) -> 445 | S62: =RANK(Q62,Q:Q)+COUNTIF($Q$1:Q61,Q62) -> 445
A63: 61 | B63: 60 | C63: rumkot | D63: 672 | E63: 672 | F63: 0 | G63: 189 | H63: 80 / 380 | I63: 8.4 | J63: 47 | K63: 6 | L63: 13 | M63: 28 | N63: 58.75 | O63: 33 | P63: 82.77 | Q63: =SUMIF(C:C,C63,D:D) -> 3066 | R63: =RANK(Q63,Q:Q) -> 261 | S63: =RANK(Q63,Q:Q)+COUNTIF($Q$1:Q62,Q63) -> 261
A64: 62 | B64: 61 | C64: BIHHI87 | D64: 665 | E64: 598 | F64: 67 | G64: 196 | H64: 70 / 380 | I64: 9.5 | J64: 44 | K64: 6 | L64: 6 | M64: 32 | N64: 62.86 | O64: 26 | P64: 83.45 | Q64: =SUMIF(C:C,C64,D:D) -> 665 | R64: =RANK(Q64,Q:Q) -> 550 | S64: =RANK(Q64,Q:Q)+COUNTIF($Q$1:Q63,Q64) -> 550
A65: 63 | B65: 62 | C65: Pavel4613 | D65: 664 | E65: 664 | F65: 0 | G65: 197 | H65: 80 / 380 | I65: 8.3 | J65: 45 | K65: 10 | L65: 10 | M65: 25 | N65: 56.25 | O65: 35 | P65: 87.84 | Q65: =SUMIF(C:C,C65,D:D) -> 2902 | R65: =RANK(Q65,Q:Q) -> 291 | S65: =RANK(Q65,Q:Q)+COUNTIF($Q$1:Q64,Q65) -> 291
A66: 64 | B66: 63 | C66: Petrovish-35. | D66: 657 | E66: 568 | F66: 89 | G66: 204 | H66: 70 / 380 | I66: 9.39 | J66: 39 | K66: 6 | L66: 4 | M66: 29 | N66: 55.71 | O66: 31 | P66: 66.96 | Q66: =SUMIF(C:C,C66,D:D) -> 2932 | R66: =RANK(Q66,Q:Q) -> 281 | S66: =RANK(Q66,Q:Q)+COUNTIF($Q$1:Q65,Q66) -> 281
A67: 65 | B67: 64 | C67: cska5 | D67: 653 | E67: 653 | F67: 0 | G67: 208 | H67: 80 / 380 | I67: 8.16 | J67: 45 | K67: 7 | L67: 6 | M67: 32 | N67: 56.25 | O67: 35 | P67: 77.12 | Q67: =SUMIF(C:C,C67,D:D) -> 3011 | R67: =RANK(Q67,Q:Q) -> 266 | S67: =RANK(Q67,Q:Q)+COUNTIF($Q$1:Q66,Q67) -> 266
A68: 66 | B68: 65 | C68: aleks22411971 | D68: 644 | E68: 644 | F68: 0 | G68: 217 | H68: 80 / 380 | I68: 8.05 | J68: 46 | K68: 7 | L68: 10 | M68: 29 | N68: 57.5 | O68: 34 | P68: 91.15 | Q68: =SUMIF(C:C,C68,D:D) -> 2937 | R68: =RANK(Q68,Q:Q) -> 276 | S68: =RANK(Q68,Q:Q)+COUNTIF($Q$1:Q67,Q68) -> 276
A69: 67 | B69: 66 | C69: ruslan | D69: 634 | E69: 634 | F69: 0 | G69: 227 | H69: 74 / 380 | I69: 8.57 | J69: 45 | K69: 4 | L69: 11 | M69: 30 | N69: 60.81 | O69: 29 | P69: 86.78 | Q69: =SUMIF(C:C,C69,D:D) -> 2320 | R69: =RANK(Q69,Q:Q) -> 386 | S69: =RANK(Q69,Q:Q)+COUNTIF($Q$1:Q68,Q69) -> 386
A70: 68 | B70: 67 | C70: hnatko | D70: 628 | E70: 618 | F70: 10 | G70: 233 | H70: 78 / 380 | I70: 8.05 | J70: 38 | K70: 6 | L70: 13 | M70: 19 | N70: 48.72 | O70: 40 | P70: 74.84 | Q70: =SUMIF(C:C,C70,D:D) -> 2902 | R70: =RANK(Q70,Q:Q) -> 291 | S70: =RANK(Q70,Q:Q)+COUNTIF($Q$1:Q69,Q70) -> 292
A71: 69 | B71: 68 | C71: VladS | D71: 628 | E71: 540 | F71: 88 | G71: 233 | H71: 60 / 380 | I71: 10.47 | J71: 38 | K71: 8 | L71: 4 | M71: 26 | N71: 63.33 | O71: 22 | P71: 69.31 | Q71: =SUMIF(C:C,C71,D:D) -> 2160 | R71: =RANK(Q71,Q:Q) -> 455 | S71: =RANK(Q71,Q:Q)+COUNTIF($Q$1:Q70,Q71) -> 455
A72: 70 | B72: 69 | C72: MasterC4 | D72: 625 | E72: 534 | F72: 91 | G72: 236 | H72: 62 / 380 | I72: 10.08 | J72: 39 | K72: 5 | L72: 10 | M72: 24 | N72: 62.9 | O72: 23 | P72: 76.65 | Q72: =SUMIF(C:C,C72,D:D) -> 3244 | R72: =RANK(Q72,Q:Q) -> 226 | S72: =RANK(Q72,Q:Q)+COUNTIF($Q$1:Q71,Q72) -> 226
A73: 71 | B73: 70 | C73: Emmanuel Oboubi | D73: 623 | E73: 535 | F73: 88 | G73: 238 | H73: 61 / 380 | I73: 10.21 | J73: 37 | K73: 3 | L73: 10 | M73: 24 | N73: 60.66 | O73: 24 | P73: 70.76 | Q73: =SUMIF(C:C,C73,D:D) -> 2782 | R73: =RANK(Q73,Q:Q) -> 306 | S73: =RANK(Q73,Q:Q)+COUNTIF($Q$1:Q72,Q73) -> 306
A74: 72 | B74: 71 | C74: Вова Щур | D74: 618 | E74: 618 | F74: 0 | G74: 243 | H74: 80 / 380 | I74: 7.72 | J74: 45 | K74: 10 | L74: 9 | M74: 26 | N74: 56.25 | O74: 35 | P74: 78.99 | Q74: =SUMIF(C:C,C74,D:D) -> 2855 | R74: =RANK(Q74,Q:Q) -> 301 | S74: =RANK(Q74,Q:Q)+COUNTIF($Q$1:Q73,Q74) -> 301
A75: 73 | B75: 72 | C75: ziama | D75: 605 | E75: 509 | F75: 96 | G75: 256 | H75: 70 / 380 | I75: 8.64 | J75: 29 | K75: 8 | L75: 10 | M75: 11 | N75: 41.43 | O75: 41 | P75: 82.30 | Q75: =SUMIF(C:C,C75,D:D) -> 2565 | R75: =RANK(Q75,Q:Q) -> 321 | S75: =RANK(Q75,Q:Q)+COUNTIF($Q$1:Q74,Q75) -> 321
A76: 74 | B76: 73 | C76: Sergyn9 | D76: 595 | E76: 503 | F76: 92 | G76: 266 | H76: 54 / 380 | I76: 11.02 | J76: 37 | K76: 8 | L76: 10 | M76: 19 | N76: 68.52 | O76: 17 | P76: 71.33 | Q76: =SUMIF(C:C,C76,D:D) -> 1749 | R76: =RANK(Q76,Q:Q) -> 475 | S76: =RANK(Q76,Q:Q)+COUNTIF($Q$1:Q75,Q76) -> 475
A77: 75 | B77: 74 | C77: DAV1978 | D77: 586 | E77: 586 | F77: 0 | G77: 275 | H77: 80 / 380 | I77: 7.32 | J77: 34 | K77: 4 | L77: 13 | M77: 17 | N77: 42.5 | O77: 46 | P77: 67.53 | Q77: =SUMIF(C:C,C77,D:D) -> 2972 | R77: =RANK(Q77,Q:Q) -> 271 | S77: =RANK(Q77,Q:Q)+COUNTIF($Q$1:Q76,Q77) -> 271
A78: 76 | B78: 75 | C78: динамо | D78: 571 | E78: 496 | F78: 75 | G78: 290 | H78: 60 / 380 | I78: 9.52 | J78: 33 | K78: 7 | L78: 3 | M78: 23 | N78: 55 | O78: 27 | P78: 60.22 | Q78: =SUMIF(C:C,C78,D:D) -> 2131 | R78: =RANK(Q78,Q:Q) -> 460 | S78: =RANK(Q78,Q:Q)+COUNTIF($Q$1:Q77,Q78) -> 460
A79: 77 | B79: 76 | C79: Tosha13 | D79: 549 | E79: 468 | F79: 81 | G79: 312 | H79: 50 / 380 | I79: 10.98 | J79: 31 | K79: 8 | L79: 6 | M79: 17 | N79: 62 | O79: 19 | P79: 55.18 | Q79: =SUMIF(C:C,C79,D:D) -> 1937 | R79: =RANK(Q79,Q:Q) -> 470 | S79: =RANK(Q79,Q:Q)+COUNTIF($Q$1:Q78,Q79) -> 470
A80: 78 | B80: 77 | C80: nickthesecond | D80: 548 | E80: 482 | F80: 66 | G80: 313 | H80: 70 / 380 | I80: 7.83 | J80: 27 | K80: 6 | L80: 8 | M80: 13 | N80: 38.57 | O80: 43 | P80: 73.94 | Q80: =SUMIF(C:C,C80,D:D) -> 2339 | R80: =RANK(Q80,Q:Q) -> 366 | S80: =RANK(Q80,Q:Q)+COUNTIF($Q$1:Q79,Q80) -> 366
A81: 79 | B81: 78 | C81: dander | D81: 526 | E81: 474 | F81: 52 | G81: 335 | H81: 70 / 380 | I81: 7.51 | J81: 27 | K81: 9 | L81: 6 | M81: 12 | N81: 38.57 | O81: 43 | P81: 66.49 | Q81: =SUMIF(C:C,C81,D:D) -> 2386 | R81: =RANK(Q81,Q:Q) -> 351 | S81: =RANK(Q81,Q:Q)+COUNTIF($Q$1:Q80,Q81) -> 351
A82: 80 | B82: 79 | C82: l1der | D82: 526 | E82: 461 | F82: 65 | G82: 335 | H82: 70 / 380 | I82: 7.51 | J82: 26 | K82: 8 | L82: 7 | M82: 11 | N82: 37.14 | O82: 44 | P82: 72.46 | Q82: =SUMIF(C:C,C82,D:D) -> 2496 | R82: =RANK(Q82,Q:Q) -> 326 | S82: =RANK(Q82,Q:Q)+COUNTIF($Q$1:Q81,Q82) -> 326
A83: 81 | B83: 80 | C83: sergey.derx | D83: 507 | E83: 483 | F83: 24 | G83: 354 | H83: 70 / 380 | I83: 7.24 | J83: 29 | K83: 7 | L83: 6 | M83: 16 | N83: 41.43 | O83: 41 | P83: 80.00 | Q83: =SUMIF(C:C,C83,D:D) -> 2308 | R83: =RANK(Q83,Q:Q) -> 390 | S83: =RANK(Q83,Q:Q)+COUNTIF($Q$1:Q82,Q83) -> 390
A84: 82 | B84: 81 | C84: andrpo1 | D84: 496 | E84: 446 | F84: 50 | G84: 365 | H84: 70 / 380 | I84: 7.09 | J84: 25 | K84: 4 | L84: 11 | M84: 10 | N84: 35.71 | O84: 45 | P84: 61.24 | Q84: =SUMIF(C:C,C84,D:D) -> 2321 | R84: =RANK(Q84,Q:Q) -> 381 | S84: =RANK(Q84,Q:Q)+COUNTIF($Q$1:Q83,Q84) -> 381
A85: 83 | B85: 82 | C85: sergeyn | D85: 495 | E85: 417 | F85: 78 | G85: 366 | H85: 70 / 380 | I85: 7.07 | J85: 22 | K85: 3 | L85: 6 | M85: 13 | N85: 31.43 | O85: 48 | P85: 52.65 | Q85: =SUMIF(C:C,C85,D:D) -> 2339 | R85: =RANK(Q85,Q:Q) -> 366 | S85: =RANK(Q85,Q:Q)+COUNTIF($Q$1:Q84,Q85) -> 367
A86: 84 | B86: 83 | C86: sparta1 | D86: 480 | E86: 418 | F86: 62 | G86: 381 | H86: 70 / 380 | I86: 6.86 | J86: 23 | K86: 2 | L86: 9 | M86: 12 | N86: 32.86 | O86: 47 | P86: 53.35 | Q86: =SUMIF(C:C,C86,D:D) -> 2288 | R86: =RANK(Q86,Q:Q) -> 420 | S86: =RANK(Q86,Q:Q)+COUNTIF($Q$1:Q85,Q86) -> 420
A87: 85 | B87: 84 | C87: Drezden1 | D87: 477 | E87: 406 | F87: 71 | G87: 384 | H87: 70 / 380 | I87: 6.81 | J87: 20 | K87: 4 | L87: 6 | M87: 10 | N87: 28.57 | O87: 50 | P87: 53.12 | Q87: =SUMIF(C:C,C87,D:D) -> 2405 | R87: =RANK(Q87,Q:Q) -> 341 | S87: =RANK(Q87,Q:Q)+COUNTIF($Q$1:Q86,Q87) -> 341
A88: 86 | B88: 85 | C88: RMadrid | D88: 476 | E88: 425 | F88: 51 | G88: 385 | H88: 70 / 380 | I88: 6.8 | J88: 23 | K88: 2 | L88: 9 | M88: 12 | N88: 32.86 | O88: 47 | P88: 56.78 | Q88: =SUMIF(C:C,C88,D:D) -> 2353 | R88: =RANK(Q88,Q:Q) -> 361 | S88: =RANK(Q88,Q:Q)+COUNTIF($Q$1:Q87,Q88) -> 361
A89: 87 | B89: 86 | C89: Garry | D89: 468 | E89: 432 | F89: 36 | G89: 393 | H89: 70 / 380 | I89: 6.69 | J89: 23 | K89: 4 | L89: 6 | M89: 13 | N89: 32.86 | O89: 47 | P89: 61.45 | Q89: =SUMIF(C:C,C89,D:D) -> 2287 | R89: =RANK(Q89,Q:Q) -> 425 | S89: =RANK(Q89,Q:Q)+COUNTIF($Q$1:Q88,Q89) -> 425
A90: 88 | B90: 87 | C90: Динар | D90: 468 | E90: 429 | F90: 39 | G90: 393 | H90: 70 / 380 | I90: 6.69 | J90: 21 | K90: 7 | L90: 5 | M90: 9 | N90: 30 | O90: 49 | P90: 66.64 | Q90: =SUMIF(C:C,C90,D:D) -> 2242 | R90: =RANK(Q90,Q:Q) -> 450 | S90: =RANK(Q90,Q:Q)+COUNTIF($Q$1:Q89,Q90) -> 450
A91: 89 | B91: 88 | C91: dmol13 | D91: 465 | E91: 405 | F91: 60 | G91: 396 | H91: 70 / 380 | I91: 6.64 | J91: 21 | K91: 6 | L91: 5 | M91: 10 | N91: 30 | O91: 49 | P91: 64.41 | Q91: =SUMIF(C:C,C91,D:D) -> 2373 | R91: =RANK(Q91,Q:Q) -> 356 | S91: =RANK(Q91,Q:Q)+COUNTIF($Q$1:Q90,Q91) -> 356
A92: 90 | B92: 89 | C92: white force | D92: 458 | E92: 404 | F92: 54 | G92: 403 | H92: 70 / 380 | I92: 6.54 | J92: 18 | K92: 1 | L92: 6 | M92: 11 | N92: 25.71 | O92: 52 | P92: 40.75 | Q92: =SUMIF(C:C,C92,D:D) -> 2395 | R92: =RANK(Q92,Q:Q) -> 346 | S92: =RANK(Q92,Q:Q)+COUNTIF($Q$1:Q91,Q92) -> 346
A93: 91 | B93: 90 | C93: sS1mple | D93: 452 | E93: 422 | F93: 30 | G93: 409 | H93: 70 / 380 | I93: 6.46 | J93: 23 | K93: 2 | L93: 9 | M93: 12 | N93: 32.86 | O93: 47 | P93: 55.43 | Q93: =SUMIF(C:C,C93,D:D) -> 2439 | R93: =RANK(Q93,Q:Q) -> 331 | S93: =RANK(Q93,Q:Q)+COUNTIF($Q$1:Q92,Q93) -> 331
A94: 92 | B94: 91 | C94: danaygol | D94: 451 | E94: 426 | F94: 25 | G94: 410 | H94: 55 / 380 | I94: 8.2 | J94: 27 | K94: 6 | L94: 6 | M94: 15 | N94: 49.09 | O94: 28 | P94: 52.55 | Q94: =SUMIF(C:C,C94,D:D) -> 2571 | R94: =RANK(Q94,Q:Q) -> 316 | S94: =RANK(Q94,Q:Q)+COUNTIF($Q$1:Q93,Q94) -> 316
A95: 93 | B95: 92 | C95: Laster | D95: 445 | E95: 399 | F95: 46 | G95: 416 | H95: 70 / 380 | I95: 6.36 | J95: 19 | K95: 4 | L95: 3 | M95: 12 | N95: 27.14 | O95: 51 | P95: 46.89 | Q95: =SUMIF(C:C,C95,D:D) -> 2330 | R95: =RANK(Q95,Q:Q) -> 376 | S95: =RANK(Q95,Q:Q)+COUNTIF($Q$1:Q94,Q95) -> 376
A96: 94 | B96: 93 | C96: FEt1s | D96: 441 | E96: 403 | F96: 38 | G96: 420 | H96: 70 / 380 | I96: 6.3 | J96: 18 | K96: 5 | L96: 8 | M96: 5 | N96: 25.71 | O96: 52 | P96: 49.00 | Q96: =SUMIF(C:C,C96,D:D) -> 2292 | R96: =RANK(Q96,Q:Q) -> 415 | S96: =RANK(Q96,Q:Q)+COUNTIF($Q$1:Q95,Q96) -> 415
A97: 95 | B97: 94 | C97: Andrii Bilenkyi | D97: 433 | E97: 433 | F97: 0 | G97: 428 | H97: 54 / 380 | I97: 8.02 | J97: 29 | K97: 6 | L97: 7 | M97: 16 | N97: 53.7 | O97: 25 | P97: 51.86 | Q97: =SUMIF(C:C,C97,D:D) -> 1470 | R97: =RANK(Q97,Q:Q) -> 492 | S97: =RANK(Q97,Q:Q)+COUNTIF($Q$1:Q96,Q97) -> 492
A98: 96 | B98: 95 | C98: ivan | D98: 432 | E98: 388 | F98: 44 | G98: 429 | H98: 70 / 380 | I98: 6.17 | J98: 20 | K98: 2 | L98: 8 | M98: 10 | N98: 28.57 | O98: 50 | P98: 53.28 | Q98: =SUMIF(C:C,C98,D:D) -> 2434 | R98: =RANK(Q98,Q:Q) -> 336 | S98: =RANK(Q98,Q:Q)+COUNTIF($Q$1:Q97,Q98) -> 336
A99: 97 | B99: 96 | C99: thpred | D99: 431 | E99: 403 | F99: 28 | G99: 430 | H99: 70 / 380 | I99: 6.16 | J99: 21 | K99: 5 | L99: 4 | M99: 12 | N99: 30 | O99: 49 | P99: 47.62 | Q99: =SUMIF(C:C,C99,D:D) -> 2255 | R99: =RANK(Q99,Q:Q) -> 440 | S99: =RANK(Q99,Q:Q)+COUNTIF($Q$1:Q98,Q99) -> 440
A100: 98 | B100: 97 | C100: forman-gert | D100: 424 | E100: 385 | F100: 39 | G100: 437 | H100: 70 / 380 | I100: 6.06 | J100: 18 | K100: 3 | L100: 7 | M100: 8 | N100: 25.71 | O100: 52 | P100: 46.73 | Q100: =SUMIF(C:C,C100,D:D) -> 2302 | R100: =RANK(Q100,Q:Q) -> 400 | S100: =RANK(Q100,Q:Q)+COUNTIF($Q$1:Q99,Q100) -> 400
A101: 99 | B101: 98 | C101: G3rman | D101: 423 | E101: 381 | F101: 42 | G101: 438 | H101: 70 / 380 | I101: 6.04 | J101: 18 | K101: 4 | L101: 7 | M101: 7 | N101: 25.71 | O101: 52 | P101: 52.28 | Q101: =SUMIF(C:C,C101,D:D) -> 2300 | R101: =RANK(Q101,Q:Q) -> 405 | S101: =RANK(Q101,Q:Q)+COUNTIF($Q$1:Q100,Q101) -> 405
A102: 100 | B102: 99 | C102: serg.ter | D102: 417 | E102: 398 | F102: 19 | G102: 444 | H102: 70 / 380 | I102: 5.96 | J102: 20 | K102: 2 | L102: 9 | M102: 9 | N102: 28.57 | O102: 50 | P102: 45.56 | Q102: =SUMIF(C:C,C102,D:D) -> 2287 | R102: =RANK(Q102,Q:Q) -> 425 | S102: =RANK(Q102,Q:Q)+COUNTIF($Q$1:Q101,Q102) -> 426
A103: 101 | B103: 100 | C103: predictor | D103: 413 | E103: 383 | F103: 30 | G103: 448 | H103: 70 / 380 | I103: 5.9 | J103: 17 | K103: 2 | L103: 5 | M103: 10 | N103: 24.29 | O103: 53 | P103: 42.66 | Q103: =SUMIF(C:C,C103,D:D) -> 2307 | R103: =RANK(Q103,Q:Q) -> 395 | S103: =RANK(Q103,Q:Q)+COUNTIF($Q$1:Q102,Q103) -> 395
A104: 102 | B104: 101 | C104: altaran | D104: 410 | E104: 382 | F104: 28 | G104: 451 | H104: 70 / 380 | I104: 5.86 | J104: 17 | K104: 3 | L104: 4 | M104: 10 | N104: 24.29 | O104: 53 | P104: 38.18 | Q104: =SUMIF(C:C,C104,D:D) -> 2295 | R104: =RANK(Q104,Q:Q) -> 410 | S104: =RANK(Q104,Q:Q)+COUNTIF($Q$1:Q103,Q104) -> 410
A105: 103 | B105: 102 | C105: Sun | D105: 391 | E105: 326 | F105: 65 | G105: 470 | H105: 40 / 380 | I105: 9.77 | J105: 23 | K105: 4 | L105: 5 | M105: 14 | N105: 57.5 | O105: 17 | P105: 40.36 | Q105: =SUMIF(C:C,C105,D:D) -> 1492 | R105: =RANK(Q105,Q:Q) -> 487 | S105: =RANK(Q105,Q:Q)+COUNTIF($Q$1:Q104,Q105) -> 487
A106: 104 | B106: 103 | C106: sergejserikov2017 | D106: 370 | E106: 313 | F106: 57 | G106: 491 | H106: 39 / 380 | I106: 9.49 | J106: 22 | K106: 2 | L106: 5 | M106: 15 | N106: 56.41 | O106: 17 | P106: 40.49 | Q106: =SUMIF(C:C,C106,D:D) -> 1211 | R106: =RANK(Q106,Q:Q) -> 506 | S106: =RANK(Q106,Q:Q)+COUNTIF($Q$1:Q105,Q106) -> 506
A107: 105 | B107: 104 | C107: zTeref | D107: 368 | E107: 333 | F107: 35 | G107: 493 | H107: 70 / 380 | I107: 5.26 | J107: 14 | K107: 1 | L107: 8 | M107: 5 | N107: 20 | O107: 56 | P107: 37.41 | Q107: =SUMIF(C:C,C107,D:D) -> 2262 | R107: =RANK(Q107,Q:Q) -> 435 | S107: =RANK(Q107,Q:Q)+COUNTIF($Q$1:Q106,Q107) -> 435
A108: 106 | B108: 105 | C108: TMfC1924 | D108: 367 | E108: 367 | F108: 0 | G108: 494 | H108: 41 / 380 | I108: 8.95 | J108: 26 | K108: 5 | L108: 4 | M108: 17 | N108: 63.41 | O108: 15 | P108: 44.86 | Q108: =SUMIF(C:C,C108,D:D) -> 1513 | R108: =RANK(Q108,Q:Q) -> 482 | S108: =RANK(Q108,Q:Q)+COUNTIF($Q$1:Q107,Q108) -> 482
A109: 107 | B109: 106 | C109: lond0nka | D109: 347 | E109: 299 | F109: 48 | G109: 514 | H109: 30 / 380 | I109: 11.57 | J109: 22 | K109: 4 | L109: 5 | M109: 13 | N109: 73.33 | O109: 8 | P109: 40.30 | Q109: =SUMIF(C:C,C109,D:D) -> 1180 | R109: =RANK(Q109,Q:Q) -> 516 | S109: =RANK(Q109,Q:Q)+COUNTIF($Q$1:Q108,Q109) -> 516
A110: 108 | B110: 107 | C110: mcichnik | D110: 329 | E110: 282 | F110: 47 | G110: 532 | H110: 39 / 380 | I110: 8.44 | J110: 18 | K110: 0 | L110: 5 | M110: 13 | N110: 46.15 | O110: 21 | P110: 31.72 | Q110: =SUMIF(C:C,C110,D:D) -> 1078 | R110: =RANK(Q110,Q:Q) -> 526 | S110: =RANK(Q110,Q:Q)+COUNTIF($Q$1:Q109,Q110) -> 526
A111: 109 | B111: 108 | C111: rfnhfgc | D111: 322 | E111: 295 | F111: 27 | G111: 539 | H111: 37 / 380 | I111: 8.7 | J111: 19 | K111: 2 | L111: 4 | M111: 13 | N111: 51.35 | O111: 18 | P111: 33.95 | Q111: =SUMIF(C:C,C111,D:D) -> 322 | R111: =RANK(Q111,Q:Q) -> 612 | S111: =RANK(Q111,Q:Q)+COUNTIF($Q$1:Q110,Q111) -> 612
A112: 110 | B112: 109 | C112: Тагир Мурсалов | D112: 309 | E112: 281 | F112: 28 | G112: 552 | H112: 40 / 380 | I112: 7.72 | J112: 17 | K112: 4 | L112: 1 | M112: 12 | N112: 42.5 | O112: 23 | P112: 28.30 | Q112: =SUMIF(C:C,C112,D:D) -> 1332 | R112: =RANK(Q112,Q:Q) -> 496 | S112: =RANK(Q112,Q:Q)+COUNTIF($Q$1:Q111,Q112) -> 496
A113: 111 | B113: 110 | C113: alex | D113: 299 | E113: 287 | F113: 12 | G113: 562 | H113: 43 / 380 | I113: 6.95 | J113: 19 | K113: 1 | L113: 6 | M113: 12 | N113: 44.19 | O113: 24 | P113: 32.55 | Q113: =SUMIF(C:C,C113,D:D) -> 1311 | R113: =RANK(Q113,Q:Q) -> 501 | S113: =RANK(Q113,Q:Q)+COUNTIF($Q$1:Q112,Q113) -> 501
A114: 112 | B114: 111 | C114: Роман Ороман | D114: 291 | E114: 255 | F114: 36 | G114: 570 | H114: 30 / 380 | I114: 9.7 | J114: 18 | K114: 3 | L114: 7 | M114: 8 | N114: 60 | O114: 12 | P114: 32.78 | Q114: =SUMIF(C:C,C114,D:D) -> 1095 | R114: =RANK(Q114,Q:Q) -> 521 | S114: =RANK(Q114,Q:Q)+COUNTIF($Q$1:Q113,Q114) -> 521
A115: 113 | B115: 112 | C115: Сергій Денькович | D115: 291 | E115: 242 | F115: 49 | G115: 570 | H115: 30 / 380 | I115: 9.7 | J115: 16 | K115: 4 | L115: 3 | M115: 9 | N115: 53.33 | O115: 14 | P115: 29.27 | Q115: =SUMIF(C:C,C115,D:D) -> 1006 | R115: =RANK(Q115,Q:Q) -> 531 | S115: =RANK(Q115,Q:Q)+COUNTIF($Q$1:Q114,Q115) -> 531
A116: 114 | B116: 113 | C116: сафон | D116: 281 | E116: 240 | F116: 41 | G116: 580 | H116: 31 / 380 | I116: 9.06 | J116: 17 | K116: 3 | L116: 2 | M116: 12 | N116: 54.84 | O116: 14 | P116: 33.39 | Q116: =SUMIF(C:C,C116,D:D) -> 1184 | R116: =RANK(Q116,Q:Q) -> 511 | S116: =RANK(Q116,Q:Q)+COUNTIF($Q$1:Q115,Q116) -> 511
A117: 115 | B117: 114 | C117: Osvita Cloud | D117: 250 | E117: 238 | F117: 12 | G117: 611 | H117: 29 / 380 | I117: 8.62 | J117: 17 | K117: 5 | L117: 2 | M117: 10 | N117: 58.62 | O117: 12 | P117: 36.06 | Q117: =SUMIF(C:C,C117,D:D) -> 250 | R117: =RANK(Q117,Q:Q) -> 623 | S117: =RANK(Q117,Q:Q)+COUNTIF($Q$1:Q116,Q117) -> 623
A118: 116 | B118: 115 | C118: savundi | D118: 250 | E118: 213 | F118: 37 | G118: 611 | H118: 28 / 380 | I118: 8.93 | J118: 15 | K118: 3 | L118: 1 | M118: 11 | N118: 53.57 | O118: 13 | P118: 27.07 | Q118: =SUMIF(C:C,C118,D:D) -> 642 | R118: =RANK(Q118,Q:Q) -> 551 | S118: =RANK(Q118,Q:Q)+COUNTIF($Q$1:Q117,Q118) -> 551
A119: 117 | B119: 116 | C119: Tarik2210 | D119: 198 | E119: 163 | F119: 35 | G119: 663 | H119: 20 / 380 | I119: 9.9 | J119: 11 | K119: 5 | L119: 0 | M119: 6 | N119: 55 | O119: 9 | P119: 21.22 | Q119: =SUMIF(C:C,C119,D:D) -> 872 | R119: =RANK(Q119,Q:Q) -> 536 | S119: =RANK(Q119,Q:Q)+COUNTIF($Q$1:Q118,Q119) -> 536
A120: 118 | B120: 117 | C120: romankramarenko457 | D120: 184 | E120: 174 | F120: 10 | G120: 677 | H120: 20 / 380 | I120: 9.2 | J120: 13 | K120: 2 | L120: 0 | M120: 11 | N120: 65 | O120: 7 | P120: 22.85 | Q120: =SUMIF(C:C,C120,D:D) -> 781 | R120: =RANK(Q120,Q:Q) -> 542 | S120: =RANK(Q120,Q:Q)+COUNTIF($Q$1:Q119,Q120) -> 542
A121: 119 | B121: 118 | C121: CLH Hour | D121: 183 | E121: 183 | F121: 0 | G121: 678 | H121: 20 / 380 | I121: 9.15 | J121: 14 | K121: 1 | L121: 4 | M121: 9 | N121: 70 | O121: 6 | P121: 26.92 | Q121: =SUMIF(C:C,C121,D:D) -> 183 | R121: =RANK(Q121,Q:Q) -> 657 | S121: =RANK(Q121,Q:Q)+COUNTIF($Q$1:Q120,Q121) -> 657
A122: 120 | B122: 119 | C122: Petro Andrushchak | D122: 182 | E122: 173 | F122: 9 | G122: 679 | H122: 20 / 380 | I122: 9.1 | J122: 14 | K122: 3 | L122: 2 | M122: 9 | N122: 70 | O122: 6 | P122: 26.47 | Q122: =SUMIF(C:C,C122,D:D) -> 182 | R122: =RANK(Q122,Q:Q) -> 658 | S122: =RANK(Q122,Q:Q)+COUNTIF($Q$1:Q121,Q122) -> 658
A123: 121 | B123: 120 | C123: Aleksey Taran | D123: 182 | E123: 157 | F123: 25 | G123: 679 | H123: 20 / 380 | I123: 9.1 | J123: 12 | K123: 2 | L123: 0 | M123: 10 | N123: 60 | O123: 8 | P123: 20.12 | Q123: =SUMIF(C:C,C123,D:D) -> 404 | R123: =RANK(Q123,Q:Q) -> 589 | S123: =RANK(Q123,Q:Q)+COUNTIF($Q$1:Q122,Q123) -> 589
A124: 122 | B124: 121 | C124: Rtrain Raxt | D124: 171 | E124: 171 | F124: 0 | G124: 690 | H124: 19 / 380 | I124: 9 | J124: 14 | K124: 3 | L124: 2 | M124: 9 | N124: 73.68 | O124: 5 | P124: 26.47 | Q124: =SUMIF(C:C,C124,D:D) -> 171 | R124: =RANK(Q124,Q:Q) -> 661 | S124: =RANK(Q124,Q:Q)+COUNTIF($Q$1:Q123,Q124) -> 661
A125: 123 | B125: 122 | C125: Виталий | D125: 161 | E125: 161 | F125: 0 | G125: 700 | H125: 20 / 380 | I125: 8.05 | J125: 13 | K125: 2 | L125: 3 | M125: 8 | N125: 65 | O125: 7 | P125: 25.49 | Q125: =SUMIF(C:C,C125,D:D) -> 615 | R125: =RANK(Q125,Q:Q) -> 554 | S125: =RANK(Q125,Q:Q)+COUNTIF($Q$1:Q124,Q125) -> 554
A126: 124 | B126: 123 | C126: Сергей Гаврилюк | D126: 151 | E126: 146 | F126: 5 | G126: 710 | H126: 19 / 380 | I126: 7.95 | J126: 10 | K126: 2 | L126: 3 | M126: 5 | N126: 52.63 | O126: 9 | P126: 20.58 | Q126: =SUMIF(C:C,C126,D:D) -> 555 | R126: =RANK(Q126,Q:Q) -> 559 | S126: =RANK(Q126,Q:Q)+COUNTIF($Q$1:Q125,Q126) -> 559
A127: 125 | B127: 124 | C127: PremierLeague | D127: 137 | E127: 137 | F127: 0 | G127: 724 | H127: 20 / 380 | I127: 6.85 | J127: 10 | K127: 0 | L127: 1 | M127: 9 | N127: 50 | O127: 10 | P127: 16.20 | Q127: =SUMIF(C:C,C127,D:D) -> 137 | R127: =RANK(Q127,Q:Q) -> 664 | S127: =RANK(Q127,Q:Q)+COUNTIF($Q$1:Q126,Q127) -> 664
A128: 126 | B128: 125 | C128: ilsur-fresh | D128: 115 | E128: 115 | F128: 0 | G128: 746 | H128: 10 / 380 | I128: 11.5 | J128: 9 | K128: 3 | L128: 3 | M128: 3 | N128: 90 | O128: 1 | P128: 21.25 | Q128: =SUMIF(C:C,C128,D:D) -> 182 | R128: =RANK(Q128,Q:Q) -> 658 | S128: =RANK(Q128,Q:Q)+COUNTIF($Q$1:Q127,Q128) -> 659
A129: 127 | B129: 126 | C129: vitoscalette21 | D129: 102 | E129: 102 | F129: 0 | G129: 759 | H129: 10 / 380 | I129: 10.2 | J129: 7 | K129: 1 | L129: 3 | M129: 3 | N129: 70 | O129: 3 | P129: 15.80 | Q129: =SUMIF(C:C,C129,D:D) -> 160 | R129: =RANK(Q129,Q:Q) -> 662 | S129: =RANK(Q129,Q:Q)+COUNTIF($Q$1:Q128,Q129) -> 662
A130: 128 | B130: 127 | C130: Maxidollar | D130: 102 | E130: 102 | F130: 0 | G130: 759 | H130: 11 / 380 | I130: 9.27 | J130: 7 | K130: 1 | L130: 2 | M130: 4 | N130: 63.64 | O130: 4 | P130: 13.42 | Q130: =SUMIF(C:C,C130,D:D) -> 473 | R130: =RANK(Q130,Q:Q) -> 569 | S130: =RANK(Q130,Q:Q)+COUNTIF($Q$1:Q129,Q130) -> 569
A131: 129 | B131: 128 | C131: Trent Alexander-Arnold | D131: 100 | E131: 85 | F131: 15 | G131: 761 | H131: 10 / 380 | I131: 10 | J131: 5 | K131: 1 | L131: 0 | M131: 4 | N131: 50 | O131: 5 | P131: 6.75 | Q131: =SUMIF(C:C,C131,D:D) -> 100 | R131: =RANK(Q131,Q:Q) -> 669 | S131: =RANK(Q131,Q:Q)+COUNTIF($Q$1:Q130,Q131) -> 669
A132: 130 | B132: 129 | C132: Rajabali | D132: 97 | E132: 97 | F132: 0 | G132: 764 | H132: 9 / 380 | I132: 10.78 | J132: 8 | K132: 3 | L132: 1 | M132: 4 | N132: 88.89 | O132: 1 | P132: 17.97 | Q132: =SUMIF(C:C,C132,D:D) -> 374 | R132: =RANK(Q132,Q:Q) -> 602 | S132: =RANK(Q132,Q:Q)+COUNTIF($Q$1:Q131,Q132) -> 602
A133: 131 | B133: 130 | C133: SE29 | D133: 97 | E133: 97 | F133: 0 | G133: 764 | H133: 9 / 380 | I133: 10.78 | J133: 7 | K133: 1 | L133: 3 | M133: 3 | N133: 77.78 | O133: 2 | P133: 14.37 | Q133: =SUMIF(C:C,C133,D:D) -> 97 | R133: =RANK(Q133,Q:Q) -> 670 | S133: =RANK(Q133,Q:Q)+COUNTIF($Q$1:Q132,Q133) -> 670
A134: 132 | B134: 131 | C134: Stanislav Semenov | D134: 91 | E134: 82 | F134: 9 | G134: 770 | H134: 9 / 380 | I134: 10.11 | J134: 5 | K134: 0 | L134: 3 | M134: 2 | N134: 55.56 | O134: 4 | P134: 9.86 | Q134: =SUMIF(C:C,C134,D:D) -> 317 | R134: =RANK(Q134,Q:Q) -> 613 | S134: =RANK(Q134,Q:Q)+COUNTIF($Q$1:Q133,Q134) -> 613
A135: 133 | B135: 132 | C135: Віталій Назаревич | D135: 90 | E135: 90 | F135: 0 | G135: 771 | H135: 10 / 380 | I135: 9 | J135: 6 | K135: 1 | L135: 2 | M135: 3 | N135: 60 | O135: 4 | P135: 10.25 | Q135: =SUMIF(C:C,C135,D:D) -> 409 | R135: =RANK(Q135,Q:Q) -> 579 | S135: =RANK(Q135,Q:Q)+COUNTIF($Q$1:Q134,Q135) -> 579
A136: 134 | B136: 133 | C136: Olayinka90 | D136: 89 | E136: 79 | F136: 10 | G136: 772 | H136: 9 / 380 | I136: 9.89 | J136: 6 | K136: 1 | L136: 1 | M136: 4 | N136: 66.67 | O136: 3 | P136: 12.22 | Q136: =SUMIF(C:C,C136,D:D) -> 196 | R136: =RANK(Q136,Q:Q) -> 643 | S136: =RANK(Q136,Q:Q)+COUNTIF($Q$1:Q135,Q136) -> 643
A137: 135 | B137: 134 | C137: Dilmurod Askarov | D137: 87 | E137: 87 | F137: 0 | G137: 774 | H137: 10 / 380 | I137: 8.7 | J137: 6 | K137: 1 | L137: 0 | M137: 5 | N137: 60 | O137: 4 | P137: 11.11 | Q137: =SUMIF(C:C,C137,D:D) -> 376 | R137: =RANK(Q137,Q:Q) -> 597 | S137: =RANK(Q137,Q:Q)+COUNTIF($Q$1:Q136,Q137) -> 597
A138: 136 | B138: 135 | C138: nikita_fufachev | D138: 87 | E138: 70 | F138: 17 | G138: 774 | H138: 9 / 380 | I138: 9.67 | J138: 4 | K138: 0 | L138: 0 | M138: 4 | N138: 44.44 | O138: 5 | P138: 5.42 | Q138: =SUMIF(C:C,C138,D:D) -> 253 | R138: =RANK(Q138,Q:Q) -> 618 | S138: =RANK(Q138,Q:Q)+COUNTIF($Q$1:Q137,Q138) -> 618
A139: 137 | B139: 136 | C139: Karim Mairakzz | D139: 86 | E139: 81 | F139: 5 | G139: 775 | H139: 10 / 380 | I139: 8.6 | J139: 5 | K139: 1 | L139: 0 | M139: 4 | N139: 50 | O139: 5 | P139: 7.25 | Q139: =SUMIF(C:C,C139,D:D) -> 242 | R139: =RANK(Q139,Q:Q) -> 633 | S139: =RANK(Q139,Q:Q)+COUNTIF($Q$1:Q138,Q139) -> 633
A140: 138 | B140: 137 | C140: atay.liverpool | D140: 85 | E140: 85 | F140: 0 | G140: 776 | H140: 9 / 380 | I140: 9.44 | J140: 6 | K140: 0 | L140: 1 | M140: 5 | N140: 66.67 | O140: 3 | P140: 10.25 | Q140: =SUMIF(C:C,C140,D:D) -> 85 | R140: =RANK(Q140,Q:Q) -> 689 | S140: =RANK(Q140,Q:Q)+COUNTIF($Q$1:Q139,Q140) -> 689
A141: 139 | B141: 138 | C141: GR7 | D141: 85 | E141: 85 | F141: 0 | G141: 776 | H141: 10 / 380 | I141: 8.5 | J141: 6 | K141: 0 | L141: 1 | M141: 5 | N141: 60 | O141: 4 | P141: 10.85 | Q141: =SUMIF(C:C,C141,D:D) -> 417 | R141: =RANK(Q141,Q:Q) -> 574 | S141: =RANK(Q141,Q:Q)+COUNTIF($Q$1:Q140,Q141) -> 574
A142: 140 | B142: 139 | C142: Unreal 17 | D142: 79 | E142: 79 | F142: 0 | G142: 782 | H142: 10 / 380 | I142: 7.9 | J142: 5 | K142: 0 | L142: 0 | M142: 5 | N142: 50 | O142: 5 | P142: 7.25 | Q142: =SUMIF(C:C,C142,D:D) -> 212 | R142: =RANK(Q142,Q:Q) -> 638 | S142: =RANK(Q142,Q:Q)+COUNTIF($Q$1:Q141,Q142) -> 638
A143: 141 | B143: 140 | C143: Alegik_27 | D143: 70 | E143: 70 | F143: 0 | G143: 791 | H143: 9 / 380 | I143: 7.78 | J143: 4 | K143: 1 | L143: 0 | M143: 3 | N143: 44.44 | O143: 5 | P143: 7.37 | Q143: =SUMIF(C:C,C143,D:D) -> 70 | R143: =RANK(Q143,Q:Q) -> 692 | S143: =RANK(Q143,Q:Q)+COUNTIF($Q$1:Q142,Q143) -> 692
A144: 142 | B144: 141 | C144: Huxley | D144: 69 | E144: 58 | F144: 11 | G144: 792 | H144: 9 / 380 | I144: 7.67 | J144: 3 | K144: 1 | L144: 1 | M144: 1 | N144: 33.33 | O144: 6 | P144: 4.86 | Q144: =SUMIF(C:C,C144,D:D) -> 409 | R144: =RANK(Q144,Q:Q) -> 579 | S144: =RANK(Q144,Q:Q)+COUNTIF($Q$1:Q143,Q144) -> 580
A145: 143 | B145: 142 | C145: Андрей Большаков | D145: 66 | E145: 66 | F145: 0 | G145: 795 | H145: 9 / 380 | I145: 7.33 | J145: 4 | K145: 0 | L145: 0 | M145: 4 | N145: 44.44 | O145: 5 | P145: 5.42 | Q145: =SUMIF(C:C,C145,D:D) -> 385 | R145: =RANK(Q145,Q:Q) -> 592 | S145: =RANK(Q145,Q:Q)+COUNTIF($Q$1:Q144,Q145) -> 592
A146: 144 | B146: 143 | C146: deepraj07 | D146: 65 | E146: 65 | F146: 0 | G146: 796 | H146: 8 / 380 | I146: 8.12 | J146: 5 | K146: 1 | L146: 0 | M146: 4 | N146: 62.5 | O146: 3 | P146: 8.72 | Q146: =SUMIF(C:C,C146,D:D) -> 65 | R146: =RANK(Q146,Q:Q) -> 697 | S146: =RANK(Q146,Q:Q)+COUNTIF($Q$1:Q145,Q146) -> 697
A147: 145 | B147: 144 | C147: Star | D147: 58 | E147: 48 | F147: 10 | G147: 803 | H147: 8 / 380 | I147: 7.25 | J147: 3 | K147: 0 | L147: 1 | M147: 2 | N147: 37.5 | O147: 5 | P147: 4.86 | Q147: =SUMIF(C:C,C147,D:D) -> 372 | R147: =RANK(Q147,Q:Q) -> 607 | S147: =RANK(Q147,Q:Q)+COUNTIF($Q$1:Q146,Q147) -> 607
A148: 146 | B148: 145 | C148: savic | D148: 57 | E148: 56 | F148: 1 | G148: 804 | H148: 10 / 380 | I148: 5.7 | J148: 4 | K148: 0 | L148: 0 | M148: 4 | N148: 40 | O148: 6 | P148: 6.82 | Q148: =SUMIF(C:C,C148,D:D) -> 510 | R148: =RANK(Q148,Q:Q) -> 564 | S148: =RANK(Q148,Q:Q)+COUNTIF($Q$1:Q147,Q148) -> 564
A149: 147 | B149: 146 | C149: Egor Zanchurin | D149: 44 | E149: 44 | F149: 0 | G149: 817 | H149: 5 / 380 | I149: 8.8 | J149: 4 | K149: 0 | L149: 0 | M149: 4 | N149: 80 | O149: 1 | P149: 8.56 | Q149: =SUMIF(C:C,C149,D:D) -> 249 | R149: =RANK(Q149,Q:Q) -> 624 | S149: =RANK(Q149,Q:Q)+COUNTIF($Q$1:Q148,Q149) -> 624
A150: 148 | B150: 147 | C150: Юрій Романюк | D150: 40 | E150: 40 | F150: 0 | G150: 821 | H150: 5 / 380 | I150: 8 | J150: 3 | K150: 1 | L150: 0 | M150: 2 | N150: 60 | O150: 2 | P150: 4.36 | Q150: =SUMIF(C:C,C150,D:D) -> 194 | R150: =RANK(Q150,Q:Q) -> 648 | S150: =RANK(Q150,Q:Q)+COUNTIF($Q$1:Q149,Q150) -> 648
A151: 149 | B151: 148 | C151: Шахриер Негматов | D151: 39 | E151: 39 | F151: 0 | G151: 822 | H151: 5 / 380 | I151: 7.8 | J151: 3 | K151: 0 | L151: 1 | M151: 2 | N151: 60 | O151: 2 | P151: 5.56 | Q151: =SUMIF(C:C,C151,D:D) -> 92 | R151: =RANK(Q151,Q:Q) -> 678 | S151: =RANK(Q151,Q:Q)+COUNTIF($Q$1:Q150,Q151) -> 678
A152: 150 | B152: 149 | C152: павел фил | D152: 24 | E152: 18 | F152: 6 | G152: 837 | H152: 3 / 380 | I152: 8 | J152: 2 | K152: 0 | L152: 1 | M152: 1 | N152: 66.67 | O152: 1 | P152: 3.71 | Q152: =SUMIF(C:C,C152,D:D) -> 93 | R152: =RANK(Q152,Q:Q) -> 675 | S152: =RANK(Q152,Q:Q)+COUNTIF($Q$1:Q151,Q152) -> 675
A153: 151 | B153: 150 | C153: maradona86 | D153: 17 | E153: 12 | F153: 5 | G153: 844 | H153: 1 / 380 | I153: 17 | J153: 1 | K153: 0 | L153: 0 | M153: 1 | N153: 100 | O153: 0 | P153: 1.91 | Q153: =SUMIF(C:C,C153,D:D) -> 53 | R153: =RANK(Q153,Q:Q) -> 719 | S153: =RANK(Q153,Q:Q)+COUNTIF($Q$1:Q152,Q153) -> 719
A154: 152 | B154: 151 | C154: aleksandrtkacenko1312 | D154: 17 | E154: 12 | F154: 5 | G154: 844 | H154: 1 / 380 | I154: 17 | J154: 1 | K154: 0 | L154: 0 | M154: 1 | N154: 100 | O154: 0 | P154: 1.33 | Q154: =SUMIF(C:C,C154,D:D) -> 43 | R154: =RANK(Q154,Q:Q) -> 725 | S154: =RANK(Q154,Q:Q)+COUNTIF($Q$1:Q153,Q154) -> 725
A155: 153 | B155: 152 | C155: Burtaze | D155: 17 | E155: 12 | F155: 5 | G155: 844 | H155: 1 / 380 | I155: 17 | J155: 1 | K155: 0 | L155: 0 | M155: 1 | N155: 100 | O155: 0 | P155: 1.33 | Q155: =SUMIF(C:C,C155,D:D) -> 58 | R155: =RANK(Q155,Q:Q) -> 707 | S155: =RANK(Q155,Q:Q)+COUNTIF($Q$1:Q154,Q155) -> 707
A156: 154 | B156: 153 | C156: Elbek Yuldashev | D156: 13 | E156: 13 | F156: 0 | G156: 848 | H156: 1 / 380 | I156: 13 | J156: 1 | K156: 0 | L156: 1 | M156: 0 | N156: 100 | O156: 0 | P156: 1.91 | Q156: =SUMIF(C:C,C156,D:D) -> 13 | R156: =RANK(Q156,Q:Q) -> 749 | S156: =RANK(Q156,Q:Q)+COUNTIF($Q$1:Q155,Q156) -> 749
A157: 155 | B157: 154 | C157: AdLaBat | D157: 12 | E157: 12 | F157: 0 | G157: 849 | H157: 1 / 380 | I157: 12 | J157: 1 | K157: 0 | L157: 0 | M157: 1 | N157: 100 | O157: 0 | P157: 1.91 | Q157: =SUMIF(C:C,C157,D:D) -> 92 | R157: =RANK(Q157,Q:Q) -> 678 | S157: =RANK(Q157,Q:Q)+COUNTIF($Q$1:Q156,Q157) -> 679
A158: 156 | B158: 155 | C158: Евгений Пономарев | D158: 12 | E158: 12 | F158: 0 | G158: 849 | H158: 1 / 380 | I158: 12 | J158: 1 | K158: 0 | L158: 0 | M158: 1 | N158: 100 | O158: 0 | P158: 1.33 | Q158: =SUMIF(C:C,C158,D:D) -> 35 | R158: =RANK(Q158,Q:Q) -> 736 | S158: =RANK(Q158,Q:Q)+COUNTIF($Q$1:Q157,Q158) -> 736
A159: 157 | B159: 156 | C159: Дмитрий Дзюба | D159: 12 | E159: 12 | F159: 0 | G159: 849 | H159: 1 / 380 | I159: 12 | J159: 1 | K159: 0 | L159: 0 | M159: 1 | N159: 100 | O159: 0 | P159: 1.33 | Q159: =SUMIF(C:C,C159,D:D) -> 12 | R159: =RANK(Q159,Q:Q) -> 754 | S159: =RANK(Q159,Q:Q)+COUNTIF($Q$1:Q158,Q159) -> 754
A160: 158 | B160: 157 | C160: MemphiS | D160: 12 | E160: 12 | F160: 0 | G160: 849 | H160: 1 / 380 | I160: 12 | J160: 1 | K160: 0 | L160: 0 | M160: 1 | N160: 100 | O160: 0 | P160: 1.33 | Q160: =SUMIF(C:C,C160,D:D) -> 12 | R160: =RANK(Q160,Q:Q) -> 754 | S160: =RANK(Q160,Q:Q)+COUNTIF($Q$1:Q159,Q160) -> 755
A161: 159 | B161: 158 | C161: Сергій Шевченко | D161: 12 | E161: 12 | F161: 0 | G161: 849 | H161: 1 / 380 | I161: 12 | J161: 1 | K161: 0 | L161: 0 | M161: 1 | N161: 100 | O161: 0 | P161: 1.29 | Q161: =SUMIF(C:C,C161,D:D) -> 25 | R161: =RANK(Q161,Q:Q) -> 741 | S161: =RANK(Q161,Q:Q)+COUNTIF($Q$1:Q160,Q161) -> 741
A162: 160 | B162: 159 | C162: Миша Карпман | D162: 12 | E162: 12 | F162: 0 | G162: 849 | H162: 1 / 380 | I162: 12 | J162: 1 | K162: 0 | L162: 0 | M162: 1 | N162: 100 | O162: 0 | P162: 1.25 | Q162: =SUMIF(C:C,C162,D:D) -> 12 | R162: =RANK(Q162,Q:Q) -> 754 | S162: =RANK(Q162,Q:Q)+COUNTIF($Q$1:Q161,Q162) -> 756
A163: 161 | B163: 160 | C163: Vaqif Rashidov | D163: 12 | E163: 12 | F163: 0 | G163: 849 | H163: 1 / 380 | I163: 12 | J163: 1 | K163: 0 | L163: 0 | M163: 1 | N163: 100 | O163: 0 | P163: 1.25 | Q163: =SUMIF(C:C,C163,D:D) -> 24 | R163: =RANK(Q163,Q:Q) -> 746 | S163: =RANK(Q163,Q:Q)+COUNTIF($Q$1:Q162,Q163) -> 746
A164: 162 | B164: 161 | C164: kurah1022 | D164: 12 | E164: 12 | F164: 0 | G164: 849 | H164: 1 / 380 | I164: 12 | J164: 1 | K164: 0 | L164: 0 | M164: 1 | N164: 100 | O164: 0 | P164: 1.25 | Q164: =SUMIF(C:C,C164,D:D) -> 55 | R164: =RANK(Q164,Q:Q) -> 712 | S164: =RANK(Q164,Q:Q)+COUNTIF($Q$1:Q163,Q164) -> 712
A165: 163 | B165: 162 | C165: Ridik058 | D165: 9 | E165: 9 | F165: 0 | G165: 852 | H165: 1 / 380 | I165: 9 | J165: 1 | K165: 0 | L165: 0 | M165: 1 | N165: 100 | O165: 0 | P165: 1.18 | Q165: =SUMIF(C:C,C165,D:D) -> 9 | R165: =RANK(Q165,Q:Q) -> 762 | S165: =RANK(Q165,Q:Q)+COUNTIF($Q$1:Q164,Q165) -> 762
A166: 164 | B166: 163 | C166: naio5165 | D166: 1 | E166: 1 | F166: 0 | G166: 860 | H166: 2 / 380 | I166: 0.5 | J166: 0 | K166: 0 | L166: 0 | M166: 0 | N166: 0 | O166: 2 | P166: 0.00 | Q166: =SUMIF(C:C,C166,D:D) -> 1 | R166: =RANK(Q166,Q:Q) -> 768 | S166: =RANK(Q166,Q:Q)+COUNTIF($Q$1:Q165,Q166) -> 768
A167: 165 | B167: 164 | C167: TES22 | D167: 0 | E167: 0 | F167: 0 | G167: 861 | H167: 0 / 380 | I167: 0 | J167: 0 | K167: 0 | L167: 0 | M167: 0 | N167: 0 | O167: 0 | P167: 0.00 | Q167: =SUMIF(C:C,C167,D:D) -> 118 | R167: =RANK(Q167,Q:Q) -> 665 | S167: =RANK(Q167,Q:Q)+COUNTIF($Q$1:Q166,Q167) -> 665
A168: 166 | B168: 165 | C168: 100000 | D168: 0 | E168: 0 | F168: 0 | G168: 861 | H168: 0 / 380 | I168: 0 | J168: 0 | K168: 0 | L168: 0 | M168: 0 | N168: 0 | O168: 0 | P168: 0.00 | Q168: =SUMIF(C:C,C168,D:D) -> 194 | R168: =RANK(Q168,Q:Q) -> 648 | S168: =RANK(Q168,Q:Q)+COUNTIF($Q$1:Q167,Q168) -> 649
A169: 167 | B169: 166 | C169: Arafangel | D169: 0 | E169: 0 | F169: 0 | G169: 861 | H169: 0 / 380 | I169: 0 | J169: 0 | K169: 0 | L169: 0 | M169: 0 | N169: 0 | O169: 0 | P169: 0.00 | Q169: =SUMIF(C:C,C169,D:D) -> 0 | R169: =RANK(Q169,Q:Q) -> 769 | S169: =RANK(Q169,Q:Q)+COUNTIF($Q$1:Q168,Q169) -> 770
A170: 168 | B170: 167 | C170: id49239928 | D170: 0 | E170: 0 | F170: 0 | G170: 861 | H170: 0 / 380 | I170: 0 | J170: 0 | K170: 0 | L170: 0 | M170: 0 | N170: 0 | O170: 0 | P170: 0.00 | Q170: =SUMIF(C:C,C170,D:D) -> 65 | R170: =RANK(Q170,Q:Q) -> 697 | S170: =RANK(Q170,Q:Q)+COUNTIF($Q$1:Q169,Q170) -> 698
A171: 169 | B171: 168 | C171: TES-1 | D171: 0 | E171: 0 | F171: 0 | G171: 861 | H171: 0 / 380 | I171: 0 | J171: 0 | K171: 0 | L171: 0 | M171: 0 | N171: 0 | O171: 0 | P171: 0.00 | Q171: =SUMIF(C:C,C171,D:D) -> 0 | R171: =RANK(Q171,Q:Q) -> 769 | S171: =RANK(Q171,Q:Q)+COUNTIF($Q$1:Q170,Q171) -> 771
A172: 170 | B172: 169 | C172: pavel 1k | D172: 0 | E172: 0 | F172: 0 | G172: 861 | H172: 0 / 380 | I172: 0 | J172: 0 | K172: 0 | L172: 0 | M172: 0 | N172: 0 | O172: 0 | P172: 0.00 | Q172: =SUMIF(C:C,C172,D:D) -> 0 | R172: =RANK(Q172,Q:Q) -> 769 | S172: =RANK(Q172,Q:Q)+COUNTIF($Q$1:Q171,Q172) -> 772
A173: 171 | B173: 170 | C173: Динамо | D173: 0 | E173: 0 | F173: 0 | G173: 861 | H173: 0 / 380 | I173: 0 | J173: 0 | K173: 0 | L173: 0 | M173: 0 | N173: 0 | O173: 0 | P173: 0.00 | Q173: =SUMIF(C:C,C173,D:D) -> 2131 | R173: =RANK(Q173,Q:Q) -> 460 | S173: =RANK(Q173,Q:Q)+COUNTIF($Q$1:Q172,Q173) -> 461
A174: 172 | B174: 171 | C174: Andriy14 | D174: 0 | E174: 0 | F174: 0 | G174: 861 | H174: 0 / 380 | I174: 0 | J174: 0 | K174: 0 | L174: 0 | M174: 0 | N174: 0 | O174: 0 | P174: 0.00 | Q174: =SUMIF(C:C,C174,D:D) -> 0 | R174: =RANK(Q174,Q:Q) -> 769 | S174: =RANK(Q174,Q:Q)+COUNTIF($Q$1:Q173,Q174) -> 773
A175: 173 | B175: 172 | C175: Yarmolenko | D175: 0 | E175: 0 | F175: 0 | G175: 861 | H175: 0 / 380 | I175: 0 | J175: 0 | K175: 0 | L175: 0 | M175: 0 | N175: 0 | O175: 0 | P175: 0.00 | Q175: =SUMIF(C:C,C175,D:D) -> 0 | R175: =RANK(Q175,Q:Q) -> 769 | S175: =RANK(Q175,Q:Q)+COUNTIF($Q$1:Q174,Q175) -> 774
A176: 174 | B176: 173 | C176: Богдан | D176: 0 | E176: 0 | F176: 0 | G176: 861 | H176: 0 / 380 | I176: 0 | J176: 0 | K176: 0 | L176: 0 | M176: 0 | N176: 0 | O176: 0 | P176: 0.00 | Q176: =SUMIF(C:C,C176,D:D) -> 0 | R176: =RANK(Q176,Q:Q) -> 769 | S176: =RANK(Q176,Q:Q)+COUNTIF($Q$1:Q175,Q176) -> 775
A177: 175 | B177: 174 | C177: Outdated Joke | D177: 0 | E177: 0 | F177: 0 | G177: 861 | H177: 0 / 380 | I177: 0 | J177: 0 | K177: 0 | L177: 0 | M177: 0 | N177: 0 | O177: 0 | P177: 0.00 | Q177: =SUMIF(C:C,C177,D:D) -> 0 | R177: =RANK(Q177,Q:Q) -> 769 | S177: =RANK(Q177,Q:Q)+COUNTIF($Q$1:Q176,Q177) -> 776
A178: 176 | B178: 175 | C178: Тарас Романюк | D178: 0 | E178: 0 | F178: 0 | G178: 861 | H178: 0 / 380 | I178: 0 | J178: 0 | K178: 0 | L178: 0 | M178: 0 | N178: 0 | O178: 0 | P178: 0.00 | Q178: =SUMIF(C:C,C178,D:D) -> 0 | R178: =RANK(Q178,Q:Q) -> 769 | S178: =RANK(Q178,Q:Q)+COUNTIF($Q$1:Q177,Q178) -> 777
A179: 177 | B179: 176 | C179: Sasha Handerson | D179: 0 | E179: 0 | F179: 0 | G179: 861 | H179: 0 / 380 | I179: 0 | J179: 0 | K179: 0 | L179: 0 | M179: 0 | N179: 0 | O179: 0 | P179: 0.00 | Q179: =SUMIF(C:C,C179,D:D) -> 0 | R179: =RANK(Q179,Q:Q) -> 769 | S179: =RANK(Q179,Q:Q)+COUNTIF($Q$1:Q178,Q179) -> 778
A180: 178 | B180: 177 | C180: Oleksii Bandurko | D180: 0 | E180: 0 | F180: 0 | G180: 861 | H180: 0 / 380 | I180: 0 | J180: 0 | K180: 0 | L180: 0 | M180: 0 | N180: 0 | O180: 0 | P180: 0.00 | Q180: =SUMIF(C:C,C180,D:D) -> 0 | R180: =RANK(Q180,Q:Q) -> 769 | S180: =RANK(Q180,Q:Q)+COUNTIF($Q$1:Q179,Q180) -> 779
A181: 179 | B181: 178 | C181: Matahary | D181: 0 | E181: 0 | F181: 0 | G181: 861 | H181: 0 / 380 | I181: 0 | J181: 0 | K181: 0 | L181: 0 | M181: 0 | N181: 0 | O181: 0 | P181: 0.00 | Q181: =SUMIF(C:C,C181,D:D) -> 247 | R181: =RANK(Q181,Q:Q) -> 629 | S181: =RANK(Q181,Q:Q)+COUNTIF($Q$1:Q180,Q181) -> 629
A182: 180 | B182: 179 | C182: jedon23 | D182: 0 | E182: 0 | F182: 0 | G182: 861 | H182: 0 / 380 | I182: 0 | J182: 0 | K182: 0 | L182: 0 | M182: 0 | N182: 0 | O182: 0 | P182: 0.00 | Q182: =SUMIF(C:C,C182,D:D) -> 54 | R182: =RANK(Q182,Q:Q) -> 717 | S182: =RANK(Q182,Q:Q)+COUNTIF($Q$1:Q181,Q182) -> 717
A183: 181 | B183: 180 | C183: ARIZONA30 | D183: 0 | E183: 0 | F183: 0 | G183: 861 | H183: 0 / 380 | I183: 0 | J183: 0 | K183: 0 | L183: 0 | M183: 0 | N183: 0 | O183: 0 | P183: 0.00 | Q183: =SUMIF(C:C,C183,D:D) -> 0 | R183: =RANK(Q183,Q:Q) -> 769 | S183: =RANK(Q183,Q:Q)+COUNTIF($Q$1:Q182,Q183) -> 780
A184: 182 | B184: 181 | C184: Arthur Godfred | D184: 0 | E184: 0 | F184: 0 | G184: 861 | H184: 0 / 380 | I184: 0 | J184: 0 | K184: 0 | L184: 0 | M184: 0 | N184: 0 | O184: 0 | P184: 0.00 | Q184: =SUMIF(C:C,C184,D:D) -> 0 | R184: =RANK(Q184,Q:Q) -> 769 | S184: =RANK(Q184,Q:Q)+COUNTIF($Q$1:Q183,Q184) -> 781
A185: 183 | B185: 182 | C185: Damilola Opeyemi | D185: 0 | E185: 0 | F185: 0 | G185: 861 | H185: 0 / 380 | I185: 0 | J185: 0 | K185: 0 | L185: 0 | M185: 0 | N185: 0 | O185: 0 | P185: 0.00 | Q185: =SUMIF(C:C,C185,D:D) -> 0 | R185: =RANK(Q185,Q:Q) -> 769 | S185: =RANK(Q185,Q:Q)+COUNTIF($Q$1:Q184,Q185) -> 782
A186: 184 | B186: 183 | C186: Кирилл Оралбеков | D186: 0 | E186: 0 | F186: 0 | G186: 861 | H186: 0 / 380 | I186: 0 | J186: 0 | K186: 0 | L186: 0 | M186: 0 | N186: 0 | O186: 0 | P186: 0.00 | Q186: =SUMIF(C:C,C186,D:D) -> 0 | R186: =RANK(Q186,Q:Q) -> 769 | S186: =RANK(Q186,Q:Q)+COUNTIF($Q$1:Q185,Q186) -> 783
A187: 185 | B187: 184 | C187: ChR Zoom | D187: 0 | E187: 0 | F187: 0 | G187: 861 | H187: 0 / 380 | I187: 0 | J187: 0 | K187: 0 | L187: 0 | M187: 0 | N187: 0 | O187: 0 | P187: 0.00 | Q187: =SUMIF(C:C,C187,D:D) -> 0 | R187: =RANK(Q187,Q:Q) -> 769 | S187: =RANK(Q187,Q:Q)+COUNTIF($Q$1:Q186,Q187) -> 784
A188: 186 | B188: 185 | C188: Imel69 | D188: 0 | E188: 0 | F188: 0 | G188: 861 | H188: 0 / 380 | I188: 0 | J188: 0 | K188: 0 | L188: 0 | M188: 0 | N188: 0 | O188: 0 | P188: 0.00 | Q188: =SUMIF(C:C,C188,D:D) -> 0 | R188: =RANK(Q188,Q:Q) -> 769 | S188: =RANK(Q188,Q:Q)+COUNTIF($Q$1:Q187,Q188) -> 785
A189: 187 | B189: 186 | C189: kolay965 | D189: 0 | E189: 0 | F189: 0 | G189: 861 | H189: 0 / 380 | I189: 0 | J189: 0 | K189: 0 | L189: 0 | M189: 0 | N189: 0 | O189: 0 | P189: 0.00 | Q189: =SUMIF(C:C,C189,D:D) -> 0 | R189: =RANK(Q189,Q:Q) -> 769 | S189: =RANK(Q189,Q:Q)+COUNTIF($Q$1:Q188,Q189) -> 786
A190: 188 | B190: 187 | C190: Daniyalov | D190: 0 | E190: 0 | F190: 0 | G190: 861 | H190: 0 / 380 | I190: 0 | J190: 0 | K190: 0 | L190: 0 | M190: 0 | N190: 0 | O190: 0 | P190: 0.00 | Q190: =SUMIF(C:C,C190,D:D) -> 0 | R190: =RANK(Q190,Q:Q) -> 769 | S190: =RANK(Q190,Q:Q)+COUNTIF($Q$1:Q189,Q190) -> 787
A191: 189 | B191: 188 | C191: Albert Asante | D191: 0 | E191: 0 | F191: 0 | G191: 861 | H191: 0 / 380 | I191: 0 | J191: 0 | K191: 0 | L191: 0 | M191: 0 | N191: 0 | O191: 0 | P191: 0.00 | Q191: =SUMIF(C:C,C191,D:D) -> 0 | R191: =RANK(Q191,Q:Q) -> 769 | S191: =RANK(Q191,Q:Q)+COUNTIF($Q$1:Q190,Q191) -> 788
A192: 190 | B192: 189 | C192: Мурат Балтаев | D192: 0 | E192: 0 | F192: 0 | G192: 861 | H192: 0 / 380 | I192: 0 | J192: 0 | K192: 0 | L192: 0 | M192: 0 | N192: 0 | O192: 0 | P192: 0.00 | Q192: =SUMIF(C:C,C192,D:D) -> 12 | R192: =RANK(Q192,Q:Q) -> 754 | S192: =RANK(Q192,Q:Q)+COUNTIF($Q$1:Q191,Q192) -> 757
A193: 191 | B193: 190 | C193: юра сафонов | D193: 0 | E193: 0 | F193: 0 | G193: 861 | H193: 0 / 380 | I193: 0 | J193: 0 | K193: 0 | L193: 0 | M193: 0 | N193: 0 | O193: 0 | P193: 0.00 | Q193: =SUMIF(C:C,C193,D:D) -> 0 | R193: =RANK(Q193,Q:Q) -> 769 | S193: =RANK(Q193,Q:Q)+COUNTIF($Q$1:Q192,Q193) -> 789
A194: 192 | B194: 191 | C194: Augastine Sikhulu | D194: 0 | E194: 0 | F194: 0 | G194: 861 | H194: 0 / 380 | I194: 0 | J194: 0 | K194: 0 | L194: 0 | M194: 0 | N194: 0 | O194: 0 | P194: 0.00 | Q194: =SUMIF(C:C,C194,D:D) -> 0 | R194: =RANK(Q194,Q:Q) -> 769 | S194: =RANK(Q194,Q:Q)+COUNTIF($Q$1:Q193,Q194) -> 790
A195: 193 | B195: 192 | C195: LovroLulic | D195: 0 | E195: 0 | F195: 0 | G195: 861 | H195: 0 / 380 | I195: 0 | J195: 0 | K195: 0 | L195: 0 | M195: 0 | N195: 0 | O195: 0 | P195: 0.00 | Q195: =SUMIF(C:C,C195,D:D) -> 0 | R195: =RANK(Q195,Q:Q) -> 769 | S195: =RANK(Q195,Q:Q)+COUNTIF($Q$1:Q194,Q195) -> 791
A196: 194 | B196: 193 | C196: Lekaazotu | D196: 0 | E196: 0 | F196: 0 | G196: 861 | H196: 0 / 380 | I196: 0 | J196: 0 | K196: 0 | L196: 0 | M196: 0 | N196: 0 | O196: 0 | P196: 0.00 | Q196: =SUMIF(C:C,C196,D:D) -> 0 | R196: =RANK(Q196,Q:Q) -> 769 | S196: =RANK(Q196,Q:Q)+COUNTIF($Q$1:Q195,Q196) -> 792
A197: 195 | B197: 194 | C197: Александр | D197: 0 | E197: 0 | F197: 0 | G197: 861 | H197: 0 / 380 | I197: 0 | J197: 0 | K197: 0 | L197: 0 | M197: 0 | N197: 0 | O197: 0 | P197: 0.00 | Q197: =SUMIF(C:C,C197,D:D) -> 0 | R197: =RANK(Q197,Q:Q) -> 769 | S197: =RANK(Q197,Q:Q)+COUNTIF($Q$1:Q196,Q197) -> 793
A198: 196 | B198: 195 | C198: Zhenis | D198: 0 | E198: 0 | F198: 0 | G198: 861 | H198: 0 / 380 | I198: 0 | J198: 0 | K198: 0 | L198: 0 | M198: 0 | N198: 0 | O198: 0 | P198: 0.00 | Q198: =SUMIF(C:C,C198,D:D) -> 0 | R198: =RANK(Q198,Q:Q) -> 769 | S198: =RANK(Q198,Q:Q)+COUNTIF($Q$1:Q197,Q198) -> 794
A199: 197 | B199: 196 | C199: Татьяна Афанасьева | D199: 0 | E199: 0 | F199: 0 | G199: 861 | H199: 0 / 380 | I199: 0 | J199: 0 | K199: 0 | L199: 0 | M199: 0 | N199: 0 | O199: 0 | P199: 0.00 | Q199: =SUMIF(C:C,C199,D:D) -> 0 | R199: =RANK(Q199,Q:Q) -> 769 | S199: =RANK(Q199,Q:Q)+COUNTIF($Q$1:Q198,Q199) -> 795
A200: 198 | B200: 197 | C200: Soccer Goool | D200: 0 | E200: 0 | F200: 0 | G200: 861 | H200: 0 / 380 | I200: 0 | J200: 0 | K200: 0 | L200: 0 | M200: 0 | N200: 0 | O200: 0 | P200: 0.00 | Q200: =SUMIF(C:C,C200,D:D) -> 0 | R200: =RANK(Q200,Q:Q) -> 769 | S200: =RANK(Q200,Q:Q)+COUNTIF($Q$1:Q199,Q200) -> 796
... 2800 more rows

Sheet если участники не меняют...
A1: Участник | B1: очков | C1: место
A2: Føliant | B2: =SUMIF('Конкурсы - рейтинг new'!C:C,'если участники не меняют...'!A2,'Конкурсы - рейтинг new'!D:D) -> 3833 | C2: =RANK(B2,B:B)+COUNTIF(B$1:$B1,B2) -> 1
A3: Prosto_Serega | B3: =SUMIF('Конкурсы - рейтинг new'!C:C,'если участники не меняют...'!A3,'Конкурсы - рейтинг new'!D:D) -> 3814 | C3: =RANK(B3,B:B)+COUNTIF(B$1:$B2,B3) -> 2
A4: dyadya | B4: =SUMIF('Конкурсы - рейтинг new'!C:C,'если участники не меняют...'!A4,'Конкурсы - рейтинг new'!D:D) -> 3805 | C4: =RANK(B4,B:B)+COUNTIF(B$1:$B3,B4) -> 3
A5: victor.bogatov | B5: =SUMIF('Конкурсы - рейтинг new'!C:C,'если участники не меняют...'!A5,'Конкурсы - рейтинг new'!D:D) -> 3773 | C5: =RANK(B5,B:B)+COUNTIF(B$1:$B4,B5) -> 4
A6: anogr | B6: =SUMIF('Конкурсы - рейтинг new'!C:C,'если участники не меняют...'!A6,'Конкурсы - рейтинг new'!D:D) -> 3772 | C6: =RANK(B6,B:B)+COUNTIF(B$1:$B5,B6) -> 5
A7: ГОЛ | B7: =SUMIF('Конкурсы - рейтинг new'!C:C,'если участники не меняют...'!A7,'Конкурсы - рейтинг new'!D:D) -> 3759 | C7: =RANK(B7,B:B)+COUNTIF(B$1:$B6,B7) -> 6
A8: vasilijponkin712 | B8: =SUMIF('Конкурсы - рейтинг new'!C:C,'если участники не меняют...'!A8,'Конкурсы - рейтинг new'!D:D) -> 3748 | C8: =RANK(B8,B:B)+COUNTIF(B$1:$B7,B8) -> 7
A9: Рощенюк Юрій | B9: =SUMIF('Конкурсы - рейтинг new'!C:C,'если участники не меняют...'!A9,'Конкурсы - рейтинг new'!D:D) -> 3740 | C9: =RANK(B9,B:B)+COUNTIF(B$1:$B8,B9) -> 8
A10: Rodrimes | B10: =SUMIF('Конкурсы - рейтинг new'!C:C,'если участники не меняют...'!A10,'Конкурсы - рейтинг new'!D:D) -> 3734 | C10: =RANK(B10,B:B)+COUNTIF(B$1:$B9,B10) -> 9
A11: come back | B11: =SUMIF('Конкурсы - рейтинг new'!C:C,'если участники не меняют...'!A11,'Конкурсы - рейтинг new'!D:D) -> 3714 | C11: =RANK(B11,B:B)+COUNTIF(B$1:$B10,B11) -> 10
A12: Sashilo | B12: =SUMIF('Конкурсы - рейтинг new'!C:C,'если участники не меняют...'!A12,'Конкурсы - рейтинг new'!D:D) -> 3691 | C12: =RANK(B12,B:B)+COUNTIF(B$1:$B11,B12) -> 11
A13: egk | B13: =SUMIF('Конкурсы - рейтинг new'!C:C,'если участники не меняют...'!A13,'Конкурсы - рейтинг new'!D:D) -> 3679 | C13: =RANK(B13,B:B)+COUNTIF(B$1:$B12,B13) -> 12
A14: Serzhik | B14: =SUMIF('Конкурсы - рейтинг new'!C:C,'если участники не меняют...'!A14,'Конкурсы - рейтинг new'!D:D) -> 3673 | C14: =RANK(B14,B:B)+COUNTIF(B$1:$B13,B14) -> 13
A15: Кот-63 | B15: =SUMIF('Конкурсы - рейтинг new'!C:C,'если участники не меняют...'!A15,'Конкурсы - рейтинг new'!D:D) -> 3660 | C15: =RANK(B15,B:B)+COUNTIF(B$1:$B14,B15) -> 14
A16: JUT | B16: =SUMIF('Конкурсы - рейтинг new'!C:C,'если участники не меняют...'!A16,'Конкурсы - рейтинг new'!D:D) -> 3656 | C16: =RANK(B16,B:B)+COUNTIF(B$1:$B15,B16) -> 15
A17: bafan | B17: =SUMIF('Конкурсы - рейтинг new'!C:C,'если участники не меняют...'!A17,'Конкурсы - рейтинг new'!D:D) -> 3643 | C17: =RANK(B17,B:B)+COUNTIF(B$1:$B16,B17) -> 16
A18: gesha0024 | B18: =SUMIF('Конкурсы - рейтинг new'!C:C,'если участники не меняют...'!A18,'Конкурсы - рейтинг new'!D:D) -> 3632 | C18: =RANK(B18,B:B)+COUNTIF(B$1:$B17,B18) -> 17
A19: ПЧАНИ | B19: =SUMIF('Конкурсы - рейтинг new'!C:C,'если участники не меняют...'!A19,'Конкурсы - рейтинг new'!D:D) -> 3614 | C19: =RANK(B19,B:B)+COUNTIF(B$1:$B18,B19) -> 18
A20: Яг Морт | B20: =SUMIF('Конкурсы - рейтинг new'!C:C,'если участники не меняют...'!A20,'Конкурсы - рейтинг new'!D:D) -> 3604 | C20: =RANK(B20,B:B)+COUNTIF(B$1:$B19,B20) -> 19
A21: YumGSt | B21: =SUMIF('Конкурсы - рейтинг new'!C:C,'если участники не меняют...'!A21,'Конкурсы - рейтинг new'!D:D) -> 3603 | C21: =RANK(B21,B:B)+COUNTIF(B$1:$B20,B21) -> 20
A22: Ihor Vinnichuk | B22: =SUMIF('Конкурсы - рейтинг new'!C:C,'если участники не меняют...'!A22,'Конкурсы - рейтинг new'!D:D) -> 3601 | C22: =RANK(B22,B:B)+COUNTIF(B$1:$B21,B22) -> 21
A23: зенитфан | B23: =SUMIF('Конкурсы - рейтинг new'!C:C,'если участники не меняют...'!A23,'Конкурсы - рейтинг new'!D:D) -> 3593 | C23: =RANK(B23,B:B)+COUNTIF(B$1:$B22,B23) -> 22
A24: SSAKALAS | B24: =SUMIF('Конкурсы - рейтинг new'!C:C,'если участники не меняют...'!A24,'Конкурсы - рейтинг new'!D:D) -> 3582 | C24: =RANK(B24,B:B)+COUNTIF(B$1:$B23,B24) -> 23
A25: Doom Breaker | B25: =SUMIF('Конкурсы - рейтинг new'!C:C,'если участники не меняют...'!A25,'Конкурсы - рейтинг new'!D:D) -> 3579 | C25: =RANK(B25,B:B)+COUNTIF(B$1:$B24,B25) -> 24
A26: 22rus | B26: =SUMIF('Конкурсы - рейтинг new'!C:C,'если участники не меняют...'!A26,'Конкурсы - рейтинг new'!D:D) -> 3578 | C26: =RANK(B26,B:B)+COUNTIF(B$1:$B25,B26) -> 25
A27: Lazy Flash | B27: =SUMIF('Конкурсы - рейтинг new'!C:C,'если участники не меняют...'!A27,'Конкурсы - рейтинг new'!D:D) -> 3572 | C27: =RANK(B27,B:B)+COUNTIF(B$1:$B26,B27) -> 26
A28: SERG | B28: =SUMIF('Конкурсы - рейтинг new'!C:C,'если участники не меняют...'!A28,'Конкурсы - рейтинг new'!D:D) -> 3548 | C28: =RANK(B28,B:B)+COUNTIF(B$1:$B27,B28) -> 27
A29: Angelneit-73 | B29: =SUMIF('Конкурсы - рейтинг new'!C:C,'если участники не меняют...'!A29,'Конкурсы - рейтинг new'!D:D) -> 3544 | C29: =RANK(B29,B:B)+COUNTIF(B$1:$B28,B29) -> 28
A30: murzikov | B30: =SUMIF('Конкурсы - рейтинг new'!C:C,'если участники не меняют...'!A30,'Конкурсы - рейтинг new'!D:D) -> 3535 | C30: =RANK(B30,B:B)+COUNTIF(B$1:$B29,B30) -> 29
A31: Сокол | B31: =SUMIF('Конкурсы - рейтинг new'!C:C,'если участники не меняют...'!A31,'Конкурсы - рейтинг new'!D:D) -> 3526 | C31: =RANK(B31,B:B)+COUNTIF(B$1:$B30,B31) -> 30
A32: Zirka | B32: =SUMIF('Конкурсы - рейтинг new'!C:C,'если участники не меняют...'!A32,'Конкурсы - рейтинг new'!D:D) -> 3521 | C32: =RANK(B32,B:B)+COUNTIF(B$1:$B31,B32) -> 31
A33: gekson36 | B33: =SUMIF('Конкурсы - рейтинг new'!C:C,'если участники не меняют...'!A33,'Конкурсы - рейтинг new'!D:D) -> 3509 | C33: =RANK(B33,B:B)+COUNTIF(B$1:$B32,B33) -> 32
A34: Romchyk | B34: =SUMIF('Конкурсы - рейтинг new'!C:C,'если участники не меняют...'!A34,'Конкурсы - рейтинг new'!D:D) -> 3475 | C34: =RANK(B34,B:B)+COUNTIF(B$1:$B33,B34) -> 33
A35: Сергей Бернадский | B35: =SUMIF('Конкурсы - рейтинг new'!C:C,'если участники не меняют...'!A35,'Конкурсы - рейтинг new'!D:D) -> 3473 | C35: =RANK(B35,B:B)+COUNTIF(B$1:$B34,B35) -> 34
A36: Вовчикас | B36: =SUMIF('Конкурсы - рейтинг new'!C:C,'если участники не меняют...'!A36,'Конкурсы - рейтинг new'!D:D) -> 3463 | C36: =RANK(B36,B:B)+COUNTIF(B$1:$B35,B36) -> 35
A37: LioMart | B37: =SUMIF('Конкурсы - рейтинг new'!C:C,'если участники не меняют...'!A37,'Конкурсы - рейтинг new'!D:D) -> 3455 | C37: =RANK(B37,B:B)+COUNTIF(B$1:$B36,B37) -> 36
A38: roman.valman | B38: =SUMIF('Конкурсы - рейтинг new'!C:C,'если участники не меняют...'!A38,'Конкурсы - рейтинг new'!D:D) -> 3454 | C38: =RANK(B38,B:B)+COUNTIF(B$1:$B37,B38) -> 37
A39: aleks050874 | B39: =SUMIF('Конкурсы - рейтинг new'!C:C,'если участники не меняют...'!A39,'Конкурсы - рейтинг new'!D:D) -> 3449 | C39: =RANK(B39,B:B)+COUNTIF(B$1:$B38,B39) -> 38
A40: Anisi | B40: =SUMIF('Конкурсы - рейтинг new'!C:C,'если участники не меняют...'!A40,'Конкурсы - рейтинг new'!D:D) -> 3415 | C40: =RANK(B40,B:B)+COUNTIF(B$1:$B39,B40) -> 39
A41: khmel95 | B41: =SUMIF('Конкурсы - рейтинг new'!C:C,'если участники не меняют...'!A41,'Конкурсы - рейтинг new'!D:D) -> 3403 | C41: =RANK(B41,B:B)+COUNTIF(B$1:$B40,B41) -> 40
A42: Микола Білак | B42: =SUMIF('Конкурсы - рейтинг new'!C:C,'если участники не меняют...'!A42,'Конкурсы - рейтинг new'!D:D) -> 3392 | C42: =RANK(B42,B:B)+COUNTIF(B$1:$B41,B42) -> 41
A43: Андрій Кожумяка | B43: =SUMIF('Конкурсы - рейтинг new'!C:C,'если участники не меняют...'!A43,'Конкурсы - рейтинг new'!D:D) -> 3369 | C43: =RANK(B43,B:B)+COUNTIF(B$1:$B42,B43) -> 42
A44: SkVaL | B44: =SUMIF('Конкурсы - рейтинг new'!C:C,'если участники не меняют...'!A44,'Конкурсы - рейтинг new'!D:D) -> 3321 | C44: =RANK(B44,B:B)+COUNTIF(B$1:$B43,B44) -> 43
A45: Uriy1234 | B45: =SUMIF('Конкурсы - рейтинг new'!C:C,'если участники не меняют...'!A45,'Конкурсы - рейтинг new'!D:D) -> 3315 | C45: =RANK(B45,B:B)+COUNTIF(B$1:$B44,B45) -> 44
A46: Андрей | B46: =SUMIF('Конкурсы - рейтинг new'!C:C,'если участники не меняют...'!A46,'Конкурсы - рейтинг new'!D:D) -> 3256 | C46: =RANK(B46,B:B)+COUNTIF(B$1:$B45,B46) -> 45
A47: MasterC4 | B47: =SUMIF('Конкурсы - рейтинг new'!C:C,'если участники не меняют...'!A47,'Конкурсы - рейтинг new'!D:D) -> 3244 | C47: =RANK(B47,B:B)+COUNTIF(B$1:$B46,B47) -> 46
A48: Aneta81 | B48: =SUMIF('Конкурсы - рейтинг new'!C:C,'если участники не меняют...'!A48,'Конкурсы - рейтинг new'!D:D) -> 3233 | C48: =RANK(B48,B:B)+COUNTIF(B$1:$B47,B48) -> 47
A49: anton | B49: =SUMIF('Конкурсы - рейтинг new'!C:C,'если участники не меняют...'!A49,'Конкурсы - рейтинг new'!D:D) -> 3231 | C49: =RANK(B49,B:B)+COUNTIF(B$1:$B48,B49) -> 48
A50: Doktoroff | B50: =SUMIF('Конкурсы - рейтинг new'!C:C,'если участники не меняют...'!A50,'Конкурсы - рейтинг new'!D:D) -> 3222 | C50: =RANK(B50,B:B)+COUNTIF(B$1:$B49,B50) -> 49
A51: Dmitry Tsarytsyn | B51: =SUMIF('Конкурсы - рейтинг new'!C:C,'если участники не меняют...'!A51,'Конкурсы - рейтинг new'!D:D) -> 3200 | C51: =RANK(B51,B:B)+COUNTIF(B$1:$B50,B51) -> 50
A52: azarte | B52: =SUMIF('Конкурсы - рейтинг new'!C:C,'если участники не меняют...'!A52,'Конкурсы - рейтинг new'!D:D) -> 3198 | C52: =RANK(B52,B:B)+COUNTIF(B$1:$B51,B52) -> 51
A53: Las Kij | B53: =SUMIF('Конкурсы - рейтинг new'!C:C,'если участники не меняют...'!A53,'Конкурсы - рейтинг new'!D:D) -> 3152 | C53: =RANK(B53,B:B)+COUNTIF(B$1:$B52,B53) -> 52
A54: rumkot | B54: =SUMIF('Конкурсы - рейтинг new'!C:C,'если участники не меняют...'!A54,'Конкурсы - рейтинг new'!D:D) -> 3066 | C54: =RANK(B54,B:B)+COUNTIF(B$1:$B53,B54) -> 53
A55: cska5 | B55: =SUMIF('Конкурсы - рейтинг new'!C:C,'если участники не меняют...'!A55,'Конкурсы - рейтинг new'!D:D) -> 3011 | C55: =RANK(B55,B:B)+COUNTIF(B$1:$B54,B55) -> 54
A56: DAV1978 | B56: =SUMIF('Конкурсы - рейтинг new'!C:C,'если участники не меняют...'!A56,'Конкурсы - рейтинг new'!D:D) -> 2972 | C56: =RANK(B56,B:B)+COUNTIF(B$1:$B55,B56) -> 55
A57: aleks22411971 | B57: =SUMIF('Конкурсы - рейтинг new'!C:C,'если участники не меняют...'!A57,'Конкурсы - рейтинг new'!D:D) -> 2937 | C57: =RANK(B57,B:B)+COUNTIF(B$1:$B56,B57) -> 56
A58: Petrovish-35. | B58: =SUMIF('Конкурсы - рейтинг new'!C:C,'если участники не меняют...'!A58,'Конкурсы - рейтинг new'!D:D) -> 2932 | C58: =RANK(B58,B:B)+COUNTIF(B$1:$B57,B58) -> 57
A59: Squidward Patrikovich | B59: =SUMIF('Конкурсы - рейтинг new'!C:C,'если участники не меняют...'!A59,'Конкурсы - рейтинг new'!D:D) -> 2930 | C59: =RANK(B59,B:B)+COUNTIF(B$1:$B58,B59) -> 58
A60: hnatko | B60: =SUMIF('Конкурсы - рейтинг new'!C:C,'если участники не меняют...'!A60,'Конкурсы - рейтинг new'!D:D) -> 2902 | C60: =RANK(B60,B:B)+COUNTIF(B$1:$B59,B60) -> 59
A61: Pavel4613 | B61: =SUMIF('Конкурсы - рейтинг new'!C:C,'если участники не меняют...'!A61,'Конкурсы - рейтинг new'!D:D) -> 2902 | C61: =RANK(B61,B:B)+COUNTIF(B$1:$B60,B61) -> 60
A62: Вова Щур | B62: =SUMIF('Конкурсы - рейтинг new'!C:C,'если участники не меняют...'!A62,'Конкурсы - рейтинг new'!D:D) -> 2855 | C62: =RANK(B62,B:B)+COUNTIF(B$1:$B61,B62) -> 61
A63: Emmanuel Oboubi | B63: =SUMIF('Конкурсы - рейтинг new'!C:C,'если участники не меняют...'!A63,'Конкурсы - рейтинг new'!D:D) -> 2782 | C63: =RANK(B63,B:B)+COUNTIF(B$1:$B62,B63) -> 62
A64: SuperVlad | B64: =SUMIF('Конкурсы - рейтинг new'!C:C,'если участники не меняют...'!A64,'Конкурсы - рейтинг new'!D:D) -> 2759 | C64: =RANK(B64,B:B)+COUNTIF(B$1:$B63,B64) -> 63
A65: danaygol | B65: =SUMIF('Конкурсы - рейтинг new'!C:C,'если участники не меняют...'!A65,'Конкурсы - рейтинг new'!D:D) -> 2571 | C65: =RANK(B65,B:B)+COUNTIF(B$1:$B64,B65) -> 64
A66: ziama | B66: =SUMIF('Конкурсы - рейтинг new'!C:C,'если участники не меняют...'!A66,'Конкурсы - рейтинг new'!D:D) -> 2565 | C66: =RANK(B66,B:B)+COUNTIF(B$1:$B65,B66) -> 65
A67: l1der | B67: =SUMIF('Конкурсы - рейтинг new'!C:C,'если участники не меняют...'!A67,'Конкурсы - рейтинг new'!D:D) -> 2496 | C67: =RANK(B67,B:B)+COUNTIF(B$1:$B66,B67) -> 66
A68: sS1mple | B68: =SUMIF('Конкурсы - рейтинг new'!C:C,'если участники не меняют...'!A68,'Конкурсы - рейтинг new'!D:D) -> 2439 | C68: =RANK(B68,B:B)+COUNTIF(B$1:$B67,B68) -> 67
A69: ivan | B69: =SUMIF('Конкурсы - рейтинг new'!C:C,'если участники не меняют...'!A69,'Конкурсы - рейтинг new'!D:D) -> 2434 | C69: =RANK(B69,B:B)+COUNTIF(B$1:$B68,B69) -> 68
A70: Drezden1 | B70: =SUMIF('Конкурсы - рейтинг new'!C:C,'если участники не меняют...'!A70,'Конкурсы - рейтинг new'!D:D) -> 2405 | C70: =RANK(B70,B:B)+COUNTIF(B$1:$B69,B70) -> 69
A71: white force | B71: =SUMIF('Конкурсы - рейтинг new'!C:C,'если участники не меняют...'!A71,'Конкурсы - рейтинг new'!D:D) -> 2395 | C71: =RANK(B71,B:B)+COUNTIF(B$1:$B70,B71) -> 70
A72: dander | B72: =SUMIF('Конкурсы - рейтинг new'!C:C,'если участники не меняют...'!A72,'Конкурсы - рейтинг new'!D:D) -> 2386 | C72: =RANK(B72,B:B)+COUNTIF(B$1:$B71,B72) -> 71
A73: dmol13 | B73: =SUMIF('Конкурсы - рейтинг new'!C:C,'если участники не меняют...'!A73,'Конкурсы - рейтинг new'!D:D) -> 2373 | C73: =RANK(B73,B:B)+COUNTIF(B$1:$B72,B73) -> 72
A74: RMadrid | B74: =SUMIF('Конкурсы - рейтинг new'!C:C,'если участники не меняют...'!A74,'Конкурсы - рейтинг new'!D:D) -> 2353 | C74: =RANK(B74,B:B)+COUNTIF(B$1:$B73,B74) -> 73
A75: nickthesecond | B75: =SUMIF('Конкурсы - рейтинг new'!C:C,'если участники не меняют...'!A75,'Конкурсы - рейтинг new'!D:D) -> 2339 | C75: =RANK(B75,B:B)+COUNTIF(B$1:$B74,B75) -> 74
A76: sergeyn | B76: =SUMIF('Конкурсы - рейтинг new'!C:C,'если участники не меняют...'!A76,'Конкурсы - рейтинг new'!D:D) -> 2339 | C76: =RANK(B76,B:B)+COUNTIF(B$1:$B75,B76) -> 75
A77: Laster | B77: =SUMIF('Конкурсы - рейтинг new'!C:C,'если участники не меняют...'!A77,'Конкурсы - рейтинг new'!D:D) -> 2330 | C77: =RANK(B77,B:B)+COUNTIF(B$1:$B76,B77) -> 76
A78: andrpo1 | B78: =SUMIF('Конкурсы - рейтинг new'!C:C,'если участники не меняют...'!A78,'Конкурсы - рейтинг new'!D:D) -> 2321 | C78: =RANK(B78,B:B)+COUNTIF(B$1:$B77,B78) -> 77
A79: ruslan | B79: =SUMIF('Конкурсы - рейтинг new'!C:C,'если участники не меняют...'!A79,'Конкурсы - рейтинг new'!D:D) -> 2320 | C79: =RANK(B79,B:B)+COUNTIF(B$1:$B78,B79) -> 78
A80: sergey.derx | B80: =SUMIF('Конкурсы - рейтинг new'!C:C,'если участники не меняют...'!A80,'Конкурсы - рейтинг new'!D:D) -> 2308 | C80: =RANK(B80,B:B)+COUNTIF(B$1:$B79,B80) -> 79
A81: predictor | B81: =SUMIF('Конкурсы - рейтинг new'!C:C,'если участники не меняют...'!A81,'Конкурсы - рейтинг new'!D:D) -> 2307 | C81: =RANK(B81,B:B)+COUNTIF(B$1:$B80,B81) -> 80
A82: forman-gert | B82: =SUMIF('Конкурсы - рейтинг new'!C:C,'если участники не меняют...'!A82,'Конкурсы - рейтинг new'!D:D) -> 2302 | C82: =RANK(B82,B:B)+COUNTIF(B$1:$B81,B82) -> 81
A83: G3rman | B83: =SUMIF('Конкурсы - рейтинг new'!C:C,'если участники не меняют...'!A83,'Конкурсы - рейтинг new'!D:D) -> 2300 | C83: =RANK(B83,B:B)+COUNTIF(B$1:$B82,B83) -> 82
A84: altaran | B84: =SUMIF('Конкурсы - рейтинг new'!C:C,'если участники не меняют...'!A84,'Конкурсы - рейтинг new'!D:D) -> 2295 | C84: =RANK(B84,B:B)+COUNTIF(B$1:$B83,B84) -> 83
A85: FEt1s | B85: =SUMIF('Конкурсы - рейтинг new'!C:C,'если участники не меняют...'!A85,'Конкурсы - рейтинг new'!D:D) -> 2292 | C85: =RANK(B85,B:B)+COUNTIF(B$1:$B84,B85) -> 84
A86: sparta1 | B86: =SUMIF('Конкурсы - рейтинг new'!C:C,'если участники не меняют...'!A86,'Конкурсы - рейтинг new'!D:D) -> 2288 | C86: =RANK(B86,B:B)+COUNTIF(B$1:$B85,B86) -> 85
A87: Garry | B87: =SUMIF('Конкурсы - рейтинг new'!C:C,'если участники не меняют...'!A87,'Конкурсы - рейтинг new'!D:D) -> 2287 | C87: =RANK(B87,B:B)+COUNTIF(B$1:$B86,B87) -> 86
A88: serg.ter | B88: =SUMIF('Конкурсы - рейтинг new'!C:C,'если участники не меняют...'!A88,'Конкурсы - рейтинг new'!D:D) -> 2287 | C88: =RANK(B88,B:B)+COUNTIF(B$1:$B87,B88) -> 87
A89: zTeref | B89: =SUMIF('Конкурсы - рейтинг new'!C:C,'если участники не меняют...'!A89,'Конкурсы - рейтинг new'!D:D) -> 2262 | C89: =RANK(B89,B:B)+COUNTIF(B$1:$B88,B89) -> 88
A90: thpred | B90: =SUMIF('Конкурсы - рейтинг new'!C:C,'если участники не меняют...'!A90,'Конкурсы - рейтинг new'!D:D) -> 2255 | C90: =RANK(B90,B:B)+COUNTIF(B$1:$B89,B90) -> 89
A91: Андрій Огороднік | B91: =SUMIF('Конкурсы - рейтинг new'!C:C,'если участники не меняют...'!A91,'Конкурсы - рейтинг new'!D:D) -> 2253 | C91: =RANK(B91,B:B)+COUNTIF(B$1:$B90,B91) -> 90
A92: Динар | B92: =SUMIF('Конкурсы - рейтинг new'!C:C,'если участники не меняют...'!A92,'Конкурсы - рейтинг new'!D:D) -> 2242 | C92: =RANK(B92,B:B)+COUNTIF(B$1:$B91,B92) -> 91
A93: VladS | B93: =SUMIF('Конкурсы - рейтинг new'!C:C,'если участники не меняют...'!A93,'Конкурсы - рейтинг new'!D:D) -> 2160 | C93: =RANK(B93,B:B)+COUNTIF(B$1:$B92,B93) -> 92
A94: динамо | B94: =SUMIF('Конкурсы - рейтинг new'!C:C,'если участники не меняют...'!A94,'Конкурсы - рейтинг new'!D:D) -> 2131 | C94: =RANK(B94,B:B)+COUNTIF(B$1:$B93,B94) -> 93
A95: Tosha13 | B95: =SUMIF('Конкурсы - рейтинг new'!C:C,'если участники не меняют...'!A95,'Конкурсы - рейтинг new'!D:D) -> 1937 | C95: =RANK(B95,B:B)+COUNTIF(B$1:$B94,B95) -> 94
A96: Sergyn9 | B96: =SUMIF('Конкурсы - рейтинг new'!C:C,'если участники не меняют...'!A96,'Конкурсы - рейтинг new'!D:D) -> 1749 | C96: =RANK(B96,B:B)+COUNTIF(B$1:$B95,B96) -> 95
A97: baron | B97: =SUMIF('Конкурсы - рейтинг new'!C:C,'если участники не меняют...'!A97,'Конкурсы - рейтинг new'!D:D) -> 1599 | C97: =RANK(B97,B:B)+COUNTIF(B$1:$B96,B97) -> 96
A98: TMfC1924 | B98: =SUMIF('Конкурсы - рейтинг new'!C:C,'если участники не меняют...'!A98,'Конкурсы - рейтинг new'!D:D) -> 1513 | C98: =RANK(B98,B:B)+COUNTIF(B$1:$B97,B98) -> 97
A99: Sun | B99: =SUMIF('Конкурсы - рейтинг new'!C:C,'если участники не меняют...'!A99,'Конкурсы - рейтинг new'!D:D) -> 1492 | C99: =RANK(B99,B:B)+COUNTIF(B$1:$B98,B99) -> 98
A100: Andrii Bilenkyi | B100: =SUMIF('Конкурсы - рейтинг new'!C:C,'если участники не меняют...'!A100,'Конкурсы - рейтинг new'!D:D) -> 1470 | C100: =RANK(B100,B:B)+COUNTIF(B$1:$B99,B100) -> 99
A101: Тагир Мурсалов | B101: =SUMIF('Конкурсы - рейтинг new'!C:C,'если участники не меняют...'!A101,'Конкурсы - рейтинг new'!D:D) -> 1332 | C101: =RANK(B101,B:B)+COUNTIF(B$1:$B100,B101) -> 100
A102: alex | B102: =SUMIF('Конкурсы - рейтинг new'!C:C,'если участники не меняют...'!A102,'Конкурсы - рейтинг new'!D:D) -> 1311 | C102: =RANK(B102,B:B)+COUNTIF(B$1:$B101,B102) -> 101
A103: sergejserikov2017 | B103: =SUMIF('Конкурсы - рейтинг new'!C:C,'если участники не меняют...'!A103,'Конкурсы - рейтинг new'!D:D) -> 1211 | C103: =RANK(B103,B:B)+COUNTIF(B$1:$B102,B103) -> 102
A104: сафон | B104: =SUMIF('Конкурсы - рейтинг new'!C:C,'если участники не меняют...'!A104,'Конкурсы - рейтинг new'!D:D) -> 1184 | C104: =RANK(B104,B:B)+COUNTIF(B$1:$B103,B104) -> 103
A105: lond0nka | B105: =SUMIF('Конкурсы - рейтинг new'!C:C,'если участники не меняют...'!A105,'Конкурсы - рейтинг new'!D:D) -> 1180 | C105: =RANK(B105,B:B)+COUNTIF(B$1:$B104,B105) -> 104
A106: Роман Ороман | B106: =SUMIF('Конкурсы - рейтинг new'!C:C,'если участники не меняют...'!A106,'Конкурсы - рейтинг new'!D:D) -> 1095 | C106: =RANK(B106,B:B)+COUNTIF(B$1:$B105,B106) -> 105
A107: mcichnik | B107: =SUMIF('Конкурсы - рейтинг new'!C:C,'если участники не меняют...'!A107,'Конкурсы - рейтинг new'!D:D) -> 1078 | C107: =RANK(B107,B:B)+COUNTIF(B$1:$B106,B107) -> 106
A108: Сергій Денькович | B108: =SUMIF('Конкурсы - рейтинг new'!C:C,'если участники не меняют...'!A108,'Конкурсы - рейтинг new'!D:D) -> 1006 | C108: =RANK(B108,B:B)+COUNTIF(B$1:$B107,B108) -> 107
A109: Tarik2210 | B109: =SUMIF('Конкурсы - рейтинг new'!C:C,'если участники не меняют...'!A109,'Конкурсы - рейтинг new'!D:D) -> 872 | C109: =RANK(B109,B:B)+COUNTIF(B$1:$B108,B109) -> 108
A110: pjohov | B110: =SUMIF('Конкурсы - рейтинг new'!C:C,'если участники не меняют...'!A110,'Конкурсы - рейтинг new'!D:D) -> 844 | C110: =RANK(B110,B:B)+COUNTIF(B$1:$B109,B110) -> 109
A111: romankramarenko457 | B111: =SUMIF('Конкурсы - рейтинг new'!C:C,'если участники не меняют...'!A111,'Конкурсы - рейтинг new'!D:D) -> 781 | C111: =RANK(B111,B:B)+COUNTIF(B$1:$B110,B111) -> 110
A112: Gust | B112: =SUMIF('Конкурсы - рейтинг new'!C:C,'если участники не меняют...'!A112,'Конкурсы - рейтинг new'!D:D) -> 775 | C112: =RANK(B112,B:B)+COUNTIF(B$1:$B111,B112) -> 111
A113: Куров Олег | B113: =SUMIF('Конкурсы - рейтинг new'!C:C,'если участники не меняют...'!A113,'Конкурсы - рейтинг new'!D:D) -> 743 | C113: =RANK(B113,B:B)+COUNTIF(B$1:$B112,B113) -> 112
A114: Роман Кибкало | B114: =SUMIF('Конкурсы - рейтинг new'!C:C,'если участники не меняют...'!A114,'Конкурсы - рейтинг new'!D:D) -> 727 | C114: =RANK(B114,B:B)+COUNTIF(B$1:$B113,B114) -> 113
A115: BIHHI87 | B115: =SUMIF('Конкурсы - рейтинг new'!C:C,'если участники не меняют...'!A115,'Конкурсы - рейтинг new'!D:D) -> 665 | C115: =RANK(B115,B:B)+COUNTIF(B$1:$B114,B115) -> 114
A116: savundi | B116: =SUMIF('Конкурсы - рейтинг new'!C:C,'если участники не меняют...'!A116,'Конкурсы - рейтинг new'!D:D) -> 642 | C116: =RANK(B116,B:B)+COUNTIF(B$1:$B115,B116) -> 115
A117: Виталий | B117: =SUMIF('Конкурсы - рейтинг new'!C:C,'если участники не меняют...'!A117,'Конкурсы - рейтинг new'!D:D) -> 615 | C117: =RANK(B117,B:B)+COUNTIF(B$1:$B116,B117) -> 116
A118: Сергей Гаврилюк | B118: =SUMIF('Конкурсы - рейтинг new'!C:C,'если участники не меняют...'!A118,'Конкурсы - рейтинг new'!D:D) -> 555 | C118: =RANK(B118,B:B)+COUNTIF(B$1:$B117,B118) -> 117
A119: savic | B119: =SUMIF('Конкурсы - рейтинг new'!C:C,'если участники не меняют...'!A119,'Конкурсы - рейтинг new'!D:D) -> 510 | C119: =RANK(B119,B:B)+COUNTIF(B$1:$B118,B119) -> 118
A120: Maxidollar | B120: =SUMIF('Конкурсы - рейтинг new'!C:C,'если участники не меняют...'!A120,'Конкурсы - рейтинг new'!D:D) -> 473 | C120: =RANK(B120,B:B)+COUNTIF(B$1:$B119,B120) -> 119
A121: GR7 | B121: =SUMIF('Конкурсы - рейтинг new'!C:C,'если участники не меняют...'!A121,'Конкурсы - рейтинг new'!D:D) -> 417 | C121: =RANK(B121,B:B)+COUNTIF(B$1:$B120,B121) -> 120
A122: Huxley | B122: =SUMIF('Конкурсы - рейтинг new'!C:C,'если участники не меняют...'!A122,'Конкурсы - рейтинг new'!D:D) -> 409 | C122: =RANK(B122,B:B)+COUNTIF(B$1:$B121,B122) -> 121
A123: Віталій Назаревич | B123: =SUMIF('Конкурсы - рейтинг new'!C:C,'если участники не меняют...'!A123,'Конкурсы - рейтинг new'!D:D) -> 409 | C123: =RANK(B123,B:B)+COUNTIF(B$1:$B122,B123) -> 122
A124: Aleksey Taran | B124: =SUMIF('Конкурсы - рейтинг new'!C:C,'если участники не меняют...'!A124,'Конкурсы - рейтинг new'!D:D) -> 404 | C124: =RANK(B124,B:B)+COUNTIF(B$1:$B123,B124) -> 123
A125: Андрей Большаков | B125: =SUMIF('Конкурсы - рейтинг new'!C:C,'если участники не меняют...'!A125,'Конкурсы - рейтинг new'!D:D) -> 385 | C125: =RANK(B125,B:B)+COUNTIF(B$1:$B124,B125) -> 124
A126: Dilmurod Askarov | B126: =SUMIF('Конкурсы - рейтинг new'!C:C,'если участники не меняют...'!A126,'Конкурсы - рейтинг new'!D:D) -> 376 | C126: =RANK(B126,B:B)+COUNTIF(B$1:$B125,B126) -> 125
A127: Rajabali | B127: =SUMIF('Конкурсы - рейтинг new'!C:C,'если участники не меняют...'!A127,'Конкурсы - рейтинг new'!D:D) -> 374 | C127: =RANK(B127,B:B)+COUNTIF(B$1:$B126,B127) -> 126
A128: Star | B128: =SUMIF('Конкурсы - рейтинг new'!C:C,'если участники не меняют...'!A128,'Конкурсы - рейтинг new'!D:D) -> 372 | C128: =RANK(B128,B:B)+COUNTIF(B$1:$B127,B128) -> 127
A129: rfnhfgc | B129: =SUMIF('Конкурсы - рейтинг new'!C:C,'если участники не меняют...'!A129,'Конкурсы - рейтинг new'!D:D) -> 322 | C129: =RANK(B129,B:B)+COUNTIF(B$1:$B128,B129) -> 128
A130: Stanislav Semenov | B130: =SUMIF('Конкурсы - рейтинг new'!C:C,'если участники не меняют...'!A130,'Конкурсы - рейтинг new'!D:D) -> 317 | C130: =RANK(B130,B:B)+COUNTIF(B$1:$B129,B130) -> 129
A131: nikita_fufachev | B131: =SUMIF('Конкурсы - рейтинг new'!C:C,'если участники не меняют...'!A131,'Конкурсы - рейтинг new'!D:D) -> 253 | C131: =RANK(B131,B:B)+COUNTIF(B$1:$B130,B131) -> 130
A132: Osvita Cloud | B132: =SUMIF('Конкурсы - рейтинг new'!C:C,'если участники не меняют...'!A132,'Конкурсы - рейтинг new'!D:D) -> 250 | C132: =RANK(B132,B:B)+COUNTIF(B$1:$B131,B132) -> 131
A133: Egor Zanchurin | B133: =SUMIF('Конкурсы - рейтинг new'!C:C,'если участники не меняют...'!A133,'Конкурсы - рейтинг new'!D:D) -> 249 | C133: =RANK(B133,B:B)+COUNTIF(B$1:$B132,B133) -> 132
A134: Matahary | B134: =SUMIF('Конкурсы - рейтинг new'!C:C,'если участники не меняют...'!A134,'Конкурсы - рейтинг new'!D:D) -> 247 | C134: =RANK(B134,B:B)+COUNTIF(B$1:$B133,B134) -> 133
A135: Alex_Kotelenets | B135: =SUMIF('Конкурсы - рейтинг new'!C:C,'если участники не меняют...'!A135,'Конкурсы - рейтинг new'!D:D) -> 243 | C135: =RANK(B135,B:B)+COUNTIF(B$1:$B134,B135) -> 134
A136: Karim Mairakzz | B136: =SUMIF('Конкурсы - рейтинг new'!C:C,'если участники не меняют...'!A136,'Конкурсы - рейтинг new'!D:D) -> 242 | C136: =RANK(B136,B:B)+COUNTIF(B$1:$B135,B136) -> 135
A137: Unreal 17 | B137: =SUMIF('Конкурсы - рейтинг new'!C:C,'если участники не меняют...'!A137,'Конкурсы - рейтинг new'!D:D) -> 212 | C137: =RANK(B137,B:B)+COUNTIF(B$1:$B136,B137) -> 136
A138: Olayinka90 | B138: =SUMIF('Конкурсы - рейтинг new'!C:C,'если участники не меняют...'!A138,'Конкурсы - рейтинг new'!D:D) -> 196 | C138: =RANK(B138,B:B)+COUNTIF(B$1:$B137,B138) -> 137
A139: 100000 | B139: =SUMIF('Конкурсы - рейтинг new'!C:C,'если участники не меняют...'!A139,'Конкурсы - рейтинг new'!D:D) -> 194 | C139: =RANK(B139,B:B)+COUNTIF(B$1:$B138,B139) -> 138
A140: Юрій Романюк | B140: =SUMIF('Конкурсы - рейтинг new'!C:C,'если участники не меняют...'!A140,'Конкурсы - рейтинг new'!D:D) -> 194 | C140: =RANK(B140,B:B)+COUNTIF(B$1:$B139,B140) -> 139
A141: CLH Hour | B141: =SUMIF('Конкурсы - рейтинг new'!C:C,'если участники не меняют...'!A141,'Конкурсы - рейтинг new'!D:D) -> 183 | C141: =RANK(B141,B:B)+COUNTIF(B$1:$B140,B141) -> 140
A142: ilsur-fresh | B142: =SUMIF('Конкурсы - рейтинг new'!C:C,'если участники не меняют...'!A142,'Конкурсы - рейтинг new'!D:D) -> 182 | C142: =RANK(B142,B:B)+COUNTIF(B$1:$B141,B142) -> 141
A143: Petro Andrushchak | B143: =SUMIF('Конкурсы - рейтинг new'!C:C,'если участники не меняют...'!A143,'Конкурсы - рейтинг new'!D:D) -> 182 | C143: =RANK(B143,B:B)+COUNTIF(B$1:$B142,B143) -> 142
A144: Rtrain Raxt | B144: =SUMIF('Конкурсы - рейтинг new'!C:C,'если участники не меняют...'!A144,'Конкурсы - рейтинг new'!D:D) -> 171 | C144: =RANK(B144,B:B)+COUNTIF(B$1:$B143,B144) -> 143
A145: vitoscalette21 | B145: =SUMIF('Конкурсы - рейтинг new'!C:C,'если участники не меняют...'!A145,'Конкурсы - рейтинг new'!D:D) -> 160 | C145: =RANK(B145,B:B)+COUNTIF(B$1:$B144,B145) -> 144
A146: PremierLeague | B146: =SUMIF('Конкурсы - рейтинг new'!C:C,'если участники не меняют...'!A146,'Конкурсы - рейтинг new'!D:D) -> 137 | C146: =RANK(B146,B:B)+COUNTIF(B$1:$B145,B146) -> 145
A147: TES22 | B147: =SUMIF('Конкурсы - рейтинг new'!C:C,'если участники не меняют...'!A147,'Конкурсы - рейтинг new'!D:D) -> 118 | C147: =RANK(B147,B:B)+COUNTIF(B$1:$B146,B147) -> 146
A148: Trent Alexander-Arnold | B148: =SUMIF('Конкурсы - рейтинг new'!C:C,'если участники не меняют...'!A148,'Конкурсы - рейтинг new'!D:D) -> 100 | C148: =RANK(B148,B:B)+COUNTIF(B$1:$B147,B148) -> 147
A149: SE29 | B149: =SUMIF('Конкурсы - рейтинг new'!C:C,'если участники не меняют...'!A149,'Конкурсы - рейтинг new'!D:D) -> 97 | C149: =RANK(B149,B:B)+COUNTIF(B$1:$B148,B149) -> 148
A150: павел фил | B150: =SUMIF('Конкурсы - рейтинг new'!C:C,'если участники не меняют...'!A150,'Конкурсы - рейтинг new'!D:D) -> 93 | C150: =RANK(B150,B:B)+COUNTIF(B$1:$B149,B150) -> 149
A151: AdLaBat | B151: =SUMIF('Конкурсы - рейтинг new'!C:C,'если участники не меняют...'!A151,'Конкурсы - рейтинг new'!D:D) -> 92 | C151: =RANK(B151,B:B)+COUNTIF(B$1:$B150,B151) -> 150
A152: Шахриер Негматов | B152: =SUMIF('Конкурсы - рейтинг new'!C:C,'если участники не меняют...'!A152,'Конкурсы - рейтинг new'!D:D) -> 92 | C152: =RANK(B152,B:B)+COUNTIF(B$1:$B151,B152) -> 151
A153: Hype | B153: =SUMIF('Конкурсы - рейтинг new'!C:C,'если участники не меняют...'!A153,'Конкурсы - рейтинг new'!D:D) -> 87 | C153: =RANK(B153,B:B)+COUNTIF(B$1:$B152,B153) -> 152
A154: atay.liverpool | B154: =SUMIF('Конкурсы - рейтинг new'!C:C,'если участники не меняют...'!A154,'Конкурсы - рейтинг new'!D:D) -> 85 | C154: =RANK(B154,B:B)+COUNTIF(B$1:$B153,B154) -> 153
A155: igorko | B155: =SUMIF('Конкурсы - рейтинг new'!C:C,'если участники не меняют...'!A155,'Конкурсы - рейтинг new'!D:D) -> 82 | C155: =RANK(B155,B:B)+COUNTIF(B$1:$B154,B155) -> 154
A156: Alegik_27 | B156: =SUMIF('Конкурсы - рейтинг new'!C:C,'если участники не меняют...'!A156,'Конкурсы - рейтинг new'!D:D) -> 70 | C156: =RANK(B156,B:B)+COUNTIF(B$1:$B155,B156) -> 155
A157: deepraj07 | B157: =SUMIF('Конкурсы - рейтинг new'!C:C,'если участники не меняют...'!A157,'Конкурсы - рейтинг new'!D:D) -> 65 | C157: =RANK(B157,B:B)+COUNTIF(B$1:$B156,B157) -> 156
A158: id49239928 | B158: =SUMIF('Конкурсы - рейтинг new'!C:C,'если участники не меняют...'!A158,'Конкурсы - рейтинг new'!D:D) -> 65 | C158: =RANK(B158,B:B)+COUNTIF(B$1:$B157,B158) -> 157
A159: Анатолий | B159: =SUMIF('Конкурсы - рейтинг new'!C:C,'если участники не меняют...'!A159,'Конкурсы - рейтинг new'!D:D) -> 62 | C159: =RANK(B159,B:B)+COUNTIF(B$1:$B158,B159) -> 158
A160: Burtaze | B160: =SUMIF('Конкурсы - рейтинг new'!C:C,'если участники не меняют...'!A160,'Конкурсы - рейтинг new'!D:D) -> 58 | C160: =RANK(B160,B:B)+COUNTIF(B$1:$B159,B160) -> 159
A161: kurah1022 | B161: =SUMIF('Конкурсы - рейтинг new'!C:C,'если участники не меняют...'!A161,'Конкурсы - рейтинг new'!D:D) -> 55 | C161: =RANK(B161,B:B)+COUNTIF(B$1:$B160,B161) -> 160
A162: jedon23 | B162: =SUMIF('Конкурсы - рейтинг new'!C:C,'если участники не меняют...'!A162,'Конкурсы - рейтинг new'!D:D) -> 54 | C162: =RANK(B162,B:B)+COUNTIF(B$1:$B161,B162) -> 161
A163: maradona86 | B163: =SUMIF('Конкурсы - рейтинг new'!C:C,'если участники не меняют...'!A163,'Конкурсы - рейтинг new'!D:D) -> 53 | C163: =RANK(B163,B:B)+COUNTIF(B$1:$B162,B163) -> 162
A164: Denis | B164: =SUMIF('Конкурсы - рейтинг new'!C:C,'если участники не меняют...'!A164,'Конкурсы - рейтинг new'!D:D) -> 47 | C164: =RANK(B164,B:B)+COUNTIF(B$1:$B163,B164) -> 163
A165: aleksandrtkacenko1312 | B165: =SUMIF('Конкурсы - рейтинг new'!C:C,'если участники не меняют...'!A165,'Конкурсы - рейтинг new'!D:D) -> 43 | C165: =RANK(B165,B:B)+COUNTIF(B$1:$B164,B165) -> 164
A166: Фаныч | B166: =SUMIF('Конкурсы - рейтинг new'!C:C,'если участники не меняют...'!A166,'Конкурсы - рейтинг new'!D:D) -> 42 | C166: =RANK(B166,B:B)+COUNTIF(B$1:$B165,B166) -> 165
A167: Никита | B167: =SUMIF('Конкурсы - рейтинг new'!C:C,'если участники не меняют...'!A167,'Конкурсы - рейтинг new'!D:D) -> 40 | C167: =RANK(B167,B:B)+COUNTIF(B$1:$B166,B167) -> 166
A168: Евгений Пономарев | B168: =SUMIF('Конкурсы - рейтинг new'!C:C,'если участники не меняют...'!A168,'Конкурсы - рейтинг new'!D:D) -> 35 | C168: =RANK(B168,B:B)+COUNTIF(B$1:$B167,B168) -> 167
A169: Сергій Шевченко | B169: =SUMIF('Конкурсы - рейтинг new'!C:C,'если участники не меняют...'!A169,'Конкурсы - рейтинг new'!D:D) -> 25 | C169: =RANK(B169,B:B)+COUNTIF(B$1:$B168,B169) -> 168
A170: Vaqif Rashidov | B170: =SUMIF('Конкурсы - рейтинг new'!C:C,'если участники не меняют...'!A170,'Конкурсы - рейтинг new'!D:D) -> 24 | C170: =RANK(B170,B:B)+COUNTIF(B$1:$B169,B170) -> 169
A171: Elbek Yuldashev | B171: =SUMIF('Конкурсы - рейтинг new'!C:C,'если участники не меняют...'!A171,'Конкурсы - рейтинг new'!D:D) -> 13 | C171: =RANK(B171,B:B)+COUNTIF(B$1:$B170,B171) -> 170
A172: MemphiS | B172: =SUMIF('Конкурсы - рейтинг new'!C:C,'если участники не меняют...'!A172,'Конкурсы - рейтинг new'!D:D) -> 12 | C172: =RANK(B172,B:B)+COUNTIF(B$1:$B171,B172) -> 171
A173: Дмитрий Дзюба | B173: =SUMIF('Конкурсы - рейтинг new'!C:C,'если участники не меняют...'!A173,'Конкурсы - рейтинг new'!D:D) -> 12 | C173: =RANK(B173,B:B)+COUNTIF(B$1:$B172,B173) -> 172
A174: Миша Карпман | B174: =SUMIF('Конкурсы - рейтинг new'!C:C,'если участники не меняют...'!A174,'Конкурсы - рейтинг new'!D:D) -> 12 | C174: =RANK(B174,B:B)+COUNTIF(B$1:$B173,B174) -> 173
A175: Мурат Балтаев | B175: =SUMIF('Конкурсы - рейтинг new'!C:C,'если участники не меняют...'!A175,'Конкурсы - рейтинг new'!D:D) -> 12 | C175: =RANK(B175,B:B)+COUNTIF(B$1:$B174,B175) -> 174
A176: Ridik058 | B176: =SUMIF('Конкурсы - рейтинг new'!C:C,'если участники не меняют...'!A176,'Конкурсы - рейтинг new'!D:D) -> 9 | C176: =RANK(B176,B:B)+COUNTIF(B$1:$B175,B176) -> 175
A177: jedon | B177: =SUMIF('Конкурсы - рейтинг new'!C:C,'если участники не меняют...'!A177,'Конкурсы - рейтинг new'!D:D) -> 7 | C177: =RANK(B177,B:B)+COUNTIF(B$1:$B176,B177) -> 176
A178: naio5165 | B178: =SUMIF('Конкурсы - рейтинг new'!C:C,'если участники не меняют...'!A178,'Конкурсы - рейтинг new'!D:D) -> 1 | C178: =RANK(B178,B:B)+COUNTIF(B$1:$B177,B178) -> 177
A179: Albert Asante | B179: =SUMIF('Конкурсы - рейтинг new'!C:C,'если участники не меняют...'!A179,'Конкурсы - рейтинг new'!D:D) -> 0 | C179: =RANK(B179,B:B)+COUNTIF(B$1:$B178,B179) -> 178
A180: Andriy14 | B180: =SUMIF('Конкурсы - рейтинг new'!C:C,'если участники не меняют...'!A180,'Конкурсы - рейтинг new'!D:D) -> 0 | C180: =RANK(B180,B:B)+COUNTIF(B$1:$B179,B180) -> 179
A181: Arafangel | B181: =SUMIF('Конкурсы - рейтинг new'!C:C,'если участники не меняют...'!A181,'Конкурсы - рейтинг new'!D:D) -> 0 | C181: =RANK(B181,B:B)+COUNTIF(B$1:$B180,B181) -> 180
A182: ARIZONA30 | B182: =SUMIF('Конкурсы - рейтинг new'!C:C,'если участники не меняют...'!A182,'Конкурсы - рейтинг new'!D:D) -> 0 | C182: =RANK(B182,B:B)+COUNTIF(B$1:$B181,B182) -> 181
A183: Arthur Godfred | B183: =SUMIF('Конкурсы - рейтинг new'!C:C,'если участники не меняют...'!A183,'Конкурсы - рейтинг new'!D:D) -> 0 | C183: =RANK(B183,B:B)+COUNTIF(B$1:$B182,B183) -> 182
A184: Augastine Sikhulu | B184: =SUMIF('Конкурсы - рейтинг new'!C:C,'если участники не меняют...'!A184,'Конкурсы - рейтинг new'!D:D) -> 0 | C184: =RANK(B184,B:B)+COUNTIF(B$1:$B183,B184) -> 183
A185: Bizon | B185: =SUMIF('Конкурсы - рейтинг new'!C:C,'если участники не меняют...'!A185,'Конкурсы - рейтинг new'!D:D) -> 0 | C185: =RANK(B185,B:B)+COUNTIF(B$1:$B184,B185) -> 184
A186: ChR Zoom | B186: =SUMIF('Конкурсы - рейтинг new'!C:C,'если участники не меняют...'!A186,'Конкурсы - рейтинг new'!D:D) -> 0 | C186: =RANK(B186,B:B)+COUNTIF(B$1:$B185,B186) -> 185
A187: Damilola Opeyemi | B187: =SUMIF('Конкурсы - рейтинг new'!C:C,'если участники не меняют...'!A187,'Конкурсы - рейтинг new'!D:D) -> 0 | C187: =RANK(B187,B:B)+COUNTIF(B$1:$B186,B187) -> 186
A188: Daniyalov | B188: =SUMIF('Конкурсы - рейтинг new'!C:C,'если участники не меняют...'!A188,'Конкурсы - рейтинг new'!D:D) -> 0 | C188: =RANK(B188,B:B)+COUNTIF(B$1:$B187,B188) -> 187
A189: Imel69 | B189: =SUMIF('Конкурсы - рейтинг new'!C:C,'если участники не меняют...'!A189,'Конкурсы - рейтинг new'!D:D) -> 0 | C189: =RANK(B189,B:B)+COUNTIF(B$1:$B188,B189) -> 188
A190: kolay965 | B190: =SUMIF('Конкурсы - рейтинг new'!C:C,'если участники не меняют...'!A190,'Конкурсы - рейтинг new'!D:D) -> 0 | C190: =RANK(B190,B:B)+COUNTIF(B$1:$B189,B190) -> 189
A191: Lekaazotu | B191: =SUMIF('Конкурсы - рейтинг new'!C:C,'если участники не меняют...'!A191,'Конкурсы - рейтинг new'!D:D) -> 0 | C191: =RANK(B191,B:B)+COUNTIF(B$1:$B190,B191) -> 190
A192: Lolik | B192: =SUMIF('Конкурсы - рейтинг new'!C:C,'если участники не меняют...'!A192,'Конкурсы - рейтинг new'!D:D) -> 0 | C192: =RANK(B192,B:B)+COUNTIF(B$1:$B191,B192) -> 191
A193: LovroLulic | B193: =SUMIF('Конкурсы - рейтинг new'!C:C,'если участники не меняют...'!A193,'Конкурсы - рейтинг new'!D:D) -> 0 | C193: =RANK(B193,B:B)+COUNTIF(B$1:$B192,B193) -> 192
A194: Nemec183 | B194: =SUMIF('Конкурсы - рейтинг new'!C:C,'если участники не меняют...'!A194,'Конкурсы - рейтинг new'!D:D) -> 0 | C194: =RANK(B194,B:B)+COUNTIF(B$1:$B193,B194) -> 193
A195: Oleksii Bandurko | B195: =SUMIF('Конкурсы - рейтинг new'!C:C,'если участники не меняют...'!A195,'Конкурсы - рейтинг new'!D:D) -> 0 | C195: =RANK(B195,B:B)+COUNTIF(B$1:$B194,B195) -> 194
A196: Outdated Joke | B196: =SUMIF('Конкурсы - рейтинг new'!C:C,'если участники не меняют...'!A196,'Конкурсы - рейтинг new'!D:D) -> 0 | C196: =RANK(B196,B:B)+COUNTIF(B$1:$B195,B196) -> 195
A197: Parker | B197: =SUMIF('Конкурсы - рейтинг new'!C:C,'если участники не меняют...'!A197,'Конкурсы - рейтинг new'!D:D) -> 0 | C197: =RANK(B197,B:B)+COUNTIF(B$1:$B196,B197) -> 196
A198: pavel 1k | B198: =SUMIF('Конкурсы - рейтинг new'!C:C,'если участники не меняют...'!A198,'Конкурсы - рейтинг new'!D:D) -> 0 | C198: =RANK(B198,B:B)+COUNTIF(B$1:$B197,B198) -> 197
A199: RedFox | B199: =SUMIF('Конкурсы - рейтинг new'!C:C,'если участники не меняют...'!A199,'Конкурсы - рейтинг new'!D:D) -> 0 | C199: =RANK(B199,B:B)+COUNTIF(B$1:$B198,B199) -> 198
A200: Sanya | B200: =SUMIF('Конкурсы - рейтинг new'!C:C,'если участники не меняют...'!A200,'Конкурсы - рейтинг new'!D:D) -> 0 | C200: =RANK(B200,B:B)+COUNTIF(B$1:$B199,B200) -> 199
... 21 more rows

Sheet Лист1
